{"text_format":"1","workbook":"xlsx","n_sheets":9,"sheets":["Lehensbogen","Baukostenübersicht","Parameter","Parameter II","Produktion","Handelwaren","Erweiterungen","Preisliste Throal","Lager"],"not_rendered":{"charts":0,"images":0,"macros":1,"external_links":0,"defined_names":2,"comments":0,"pivot_tables":0},"unopened":[],"bounds":{"document_bytes":16777216,"sheet_cells":100000,"rows_first":2000,"rows_last":500,"rows_between":2000,"halvings":0,"cell_chars":16384,"cell_head_chars":4096},"cells_cut":0,"cells_raw":0,"read":"whole","date_system":"1900"}

{"sheet":"Lehensbogen","index":0,"n_rows":210,"n_cols":34,"rows_kept":210,"cut":false,"hidden":false,"merged":[[36,15,36,16],[149,13,149,15],[150,13,150,15],[151,13,151,15],[152,13,152,15],[153,13,153,15],[154,13,154,15],[155,13,155,15],[156,13,156,15],[157,13,157,15],[136,13,136,15],[137,13,137,15],[138,13,138,15],[139,13,139,15],[140,13,140,15],[141,13,141,15],[142,13,142,15],[143,13,143,15],[144,13,144,15],[209,1,209,6],[209,7,209,9],[209,10,209,15],[209,16,209,22],[209,23,209,25],[207,1,207,6],[207,7,207,9],[207,10,207,15],[207,16,207,22],[207,23,207,25],[208,1,208,6],[208,7,208,9],[208,10,208,15],[208,16,208,22],[208,23,208,25],[205,1,205,6],[205,7,205,9],[205,10,205,15],[205,16,205,22],[205,23,205,25],[206,1,206,6],[206,7,206,9],[206,10,206,15],[206,16,206,22],[206,23,206,25],[203,1,203,6],[203,7,203,9],[203,10,203,15],[203,16,203,22],[203,23,203,25],[204,1,204,6],[204,7,204,9],[204,10,204,15],[204,16,204,22],[204,23,204,25],[201,1,201,6],[201,7,201,9],[201,10,201,15],[201,16,201,22],[201,23,201,25],[202,1,202,6],[202,7,202,9],[202,10,202,15],[202,16,202,22],[202,23,202,25],[199,1,199,6],[199,7,199,9],[199,10,199,15],[199,16,199,22],[199,23,199,25],[200,1,200,6],[200,7,200,9],[200,10,200,15],[200,16,200,22],[200,23,200,25],[197,1,197,6],[197,7,197,9],[197,10,197,15],[197,16,197,22],[197,23,197,25],[198,1,198,6],[198,7,198,9],[198,10,198,15],[198,16,198,22],[198,23,198,25],[195,1,195,6],[195,7,195,9],[195,10,195,15],[195,16,195,22],[195,23,195,25],[196,1,196,6],[196,7,196,9],[196,10,196,15],[196,16,196,22],[196,23,196,25],[193,1,193,6],[193,7,193,9],[193,10,193,15],[193,16,193,22],[193,23,193,25],[194,1,194,6],[194,7,194,9],[194,10,194,15],[194,16,194,22],[194,23,194,25],[191,23,191,25],[192,1,192,6],[192,7,192,9],[192,10,192,15],[192,16,192,22],[192,23,192,25],[189,10,189,15],[189,16,189,22],[191,1,191,6],[191,7,191,9],[191,10,191,15],[191,16,191,22],[185,24,185,25],[190,1,190,6],[190,7,190,9],[190,10,190,15],[190,23,190,25],[190,16,190,22],[183,21,183,22],[183,24,183,25],[184,0,184,5],[184,6,184,9],[184,10,184,11],[184,12,184,15],[184,16,184,17],[184,18,184,19],[184,21,184,22],[184,24,184,25],[183,0,183,5],[183,6,183,9],[183,10,183,11],[183,12,183,15],[183,16,183,17],[183,18,183,19],[181,24,181,25],[182,0,182,5],[182,6,182,9],[182,10,182,11],[182,12,182,15],[182,16,182,17],[182,18,182,19],[182,21,182,22],[182,24,182,25],[181,0,181,5],[181,6,181,9],[181,10,181,11],[181,12,181,15],[181,16,181,17],[181,18,181,19],[181,21,181,22],[179,21,179,22],[179,24,179,25],[180,0,180,5],[180,6,180,9],[180,10,180,11],[180,12,180,15],[180,16,180,17],[180,18,180,19],[180,21,180,22],[180,24,180,25],[179,0,179,5],[179,6,179,9],[179,10,179,11],[179,12,179,15],[179,16,179,17],[179,18,179,19],[177,21,177,22],[177,24,177,25],[178,0,178,5],[178,6,178,9],[178,10,178,11],[178,12,178,15],[178,16,178,17],[178,18,178,19],[178,21,178,22],[178,24,178,25],[177,0,177,5],[177,6,177,9],[177,10,177,11],[177,12,177,15],[177,16,177,17],[177,18,177,19],[175,21,175,22],[175,24,175,25],[176,0,176,5],[176,6,176,9],[176,10,176,11],[176,12,176,15],[176,16,176,17],[176,18,176,19],[176,21,176,22],[176,24,176,25],[175,0,175,5],[175,6,175,9],[175,10,175,11],[175,12,175,15],[175,16,175,17],[175,18,175,19],[173,21,173,22],[173,24,173,25],[174,0,174,5],[174,6,174,9],[174,10,174,11],[174,12,174,15],[174,16,174,17],[174,18,174,19],[174,21,174,22],[174,24,174,25],[173,0,173,5],[173,6,173,9],[173,10,173,11],[173,12,173,15],[173,16,173,17],[173,18,173,19],[171,21,171,22],[171,24,171,25],[172,0,172,5],[172,6,172,9],[172,10,172,11],[172,12,172,15],[172,16,172,17],[172,18,172,19],[172,21,172,22],[172,24,172,25],[171,0,171,5],[171,6,171,9],[171,10,171,11],[171,12,171,15],[171,16,171,17],[171,18,171,19],[169,21,169,22],[169,24,169,25],[170,0,170,5],[170,6,170,9],[170,10,170,11],[170,12,170,15],[170,16,170,17],[170,18,170,19],[170,21,170,22],[170,24,170,25],[169,0,169,5],[169,6,169,9],[169,10,169,11],[169,12,169,15],[169,16,169,17],[169,18,169,19],[168,0,168,5],[168,6,168,9],[168,10,168,11],[168,12,168,15],[168,16,168,17],[168,18,168,19],[168,21,168,22],[168,24,168,25],[167,0,167,5],[167,6,167,9],[167,10,167,11],[167,12,167,15],[167,16,167,17],[167,18,167,19],[166,0,166,5],[166,6,166,9],[166,10,166,11],[166,12,166,15],[166,16,166,17],[166,18,166,19],[166,21,166,22],[166,24,166,25],[167,21,167,22],[167,24,167,25],[164,18,164,19],[164,21,164,22],[164,24,164,25],[165,0,165,5],[165,6,165,9],[165,10,165,11],[165,12,165,15],[165,16,165,17],[165,18,165,19],[165,21,165,22],[164,0,164,5],[164,6,164,9],[164,10,164,11],[164,12,164,15],[164,16,164,17],[165,24,165,25],[30,21,30,22],[31,21,31,22],[33,21,33,22],[162,18,162,23],[154,2,154,7],[154,8,154,12],[154,17,154,19],[154,20,154,22],[154,23,154,25],[153,2,153,7],[153,8,153,12],[153,17,153,19],[153,20,153,22],[153,23,153,25],[152,2,152,7],[32,21,32,22],[162,24,163,25],[156,2,156,7],[156,8,156,12],[127,13,127,15],[128,13,128,15],[156,17,156,19],[156,20,156,22],[156,23,156,25],[155,2,155,7],[155,8,155,12],[155,17,155,19],[155,20,155,22],[155,23,155,25],[157,2,157,7],[157,8,157,12],[157,17,157,19],[157,20,157,22],[157,23,157,25],[163,18,163,19],[163,21,163,22],[162,0,163,5],[162,6,163,9],[162,10,163,11],[162,12,163,15],[162,16,163,17],[152,8,152,12],[152,17,152,19],[152,20,152,22],[152,23,152,25],[151,2,151,7],[151,8,151,12],[151,17,151,19],[151,20,151,22],[151,23,151,25],[150,2,150,7],[150,8,150,12],[150,17,150,19],[150,20,150,22],[150,23,150,25],[111,29,111,31],[112,29,112,31],[113,29,113,31],[114,29,114,31],[149,2,149,7],[149,8,149,12],[149,17,149,19],[149,20,149,22],[149,23,149,25],[117,20,117,21],[117,22,117,23],[117,24,117,25],[114,24,114,25],[115,0,115,4],[115,5,115,9],[115,10,115,11],[115,13,115,14],[104,29,104,31],[105,29,105,31],[106,29,106,31],[107,29,107,31],[108,29,108,31],[109,29,109,31],[110,29,110,31],[117,0,117,4],[117,5,117,9],[117,10,117,11],[117,13,117,14],[117,16,117,17],[117,18,117,19],[115,24,115,25],[116,0,116,4],[116,5,116,9],[116,10,116,11],[116,13,116,14],[116,16,116,17],[116,18,116,19],[116,20,116,21],[116,22,116,23],[116,24,116,25],[114,22,114,23],[115,16,115,17],[115,18,115,19],[115,20,115,21],[115,22,115,23],[113,20,113,21],[113,22,113,23],[113,24,113,25],[114,0,114,4],[114,5,114,9],[114,10,114,11],[114,13,114,14],[114,16,114,17],[114,18,114,19],[114,20,114,21],[113,0,113,4],[113,5,113,9],[113,10,113,11],[113,13,113,14],[113,16,113,17],[113,18,113,19],[111,13,111,14],[111,16,111,17],[111,18,111,19],[111,20,111,21],[111,22,111,23],[111,24,111,25],[112,0,112,4],[112,5,112,9],[112,10,112,11],[112,13,112,14],[112,16,112,17],[112,18,112,19],[112,20,112,21],[112,22,112,23],[112,24,112,25],[108,22,108,23],[108,24,108,25],[109,20,109,21],[109,22,109,23],[109,24,109,25],[110,0,110,4],[110,5,110,9],[110,10,110,11],[110,13,110,14],[110,16,110,17],[110,18,110,19],[110,20,110,21],[109,0,109,4],[109,5,109,9],[109,10,109,11],[109,13,109,14],[109,16,109,17],[109,18,109,19],[110,22,110,23],[110,24,110,25],[80,21,80,23],[78,21,78,23],[79,21,79,23],[106,0,106,4],[106,5,106,9],[106,10,106,11],[106,13,106,14],[106,16,106,17],[106,18,106,19],[106,20,106,21],[105,22,105,23],[103,5,103,9],[103,16,103,17],[103,22,103,23],[101,5,101,9],[101,16,101,17],[101,22,101,23],[100,0,100,4],[101,0,101,4],[102,0,102,4],[103,0,103,4],[104,0,104,4],[91,22,91,23],[86,18,87,19],[119,10,119,11],[119,13,119,14],[121,0,121,25],[120,16,120,17],[71,21,71,23],[72,21,72,23],[73,21,73,23],[74,21,74,23],[76,21,76,23],[119,22,119,23],[119,24,119,25],[98,5,99,9],[98,0,99,4],[98,10,98,15],[99,10,99,11],[100,10,100,11],[99,13,99,14],[118,20,118,21],[118,22,118,23],[118,24,118,25],[119,0,119,4],[119,5,119,9],[119,16,119,17],[119,18,119,19],[118,0,118,4],[118,5,118,9],[118,16,118,17],[118,18,118,19],[118,10,118,11],[118,13,118,14],[105,5,105,9],[105,16,105,17],[105,0,105,4],[107,0,107,4],[107,5,107,9],[107,10,107,11],[107,13,107,14],[107,16,107,17],[107,18,107,19],[108,0,108,4],[108,5,108,9],[108,10,108,11],[108,13,108,14],[108,16,108,17],[108,18,108,19],[111,0,111,4],[111,5,111,9],[111,10,111,11],[102,10,102,11],[102,13,102,14],[105,24,105,25],[105,10,105,11],[105,13,105,14],[104,5,104,9],[104,16,104,17],[104,22,104,23],[104,24,104,25],[104,10,104,11],[104,13,104,14],[105,18,105,19],[105,20,105,21],[101,10,101,11],[101,13,101,14],[98,16,99,17],[100,5,100,9],[100,16,100,17],[100,22,100,23],[100,13,100,14],[104,18,104,19],[104,20,104,21],[101,18,101,19],[101,20,101,21],[102,18,102,19],[102,20,102,21],[103,18,103,19],[103,20,103,21],[98,22,99,23],[98,18,99,19],[98,20,99,21],[100,18,100,19],[100,20,100,21],[103,10,103,11],[103,13,103,14],[102,5,102,9],[102,16,102,17],[148,2,148,7],[148,8,148,12],[148,17,148,19],[148,20,148,22],[148,23,148,25],[147,2,147,7],[147,8,147,12],[147,17,147,19],[147,20,147,22],[147,23,147,25],[147,13,147,15],[148,13,148,15],[146,2,146,7],[146,8,146,12],[146,17,146,19],[146,20,146,22],[146,23,146,25],[145,2,145,7],[145,8,145,12],[145,17,145,19],[145,20,145,22],[145,23,145,25],[145,13,145,15],[146,13,146,15],[144,2,144,7],[144,8,144,12],[144,17,144,19],[144,20,144,22],[144,23,144,25],[143,2,143,7],[143,8,143,12],[143,17,143,19],[143,20,143,22],[143,23,143,25],[142,2,142,7],[142,8,142,12],[142,17,142,19],[142,20,142,22],[142,23,142,25],[141,2,141,7],[141,8,141,12],[141,17,141,19],[141,20,141,22],[141,23,141,25],[140,2,140,7],[140,8,140,12],[140,17,140,19],[140,20,140,22],[140,23,140,25],[139,2,139,7],[139,8,139,12],[139,17,139,19],[139,20,139,22],[139,23,139,25],[137,17,137,19],[137,20,137,22],[137,23,137,25],[138,2,138,7],[138,8,138,12],[138,17,138,19],[138,20,138,22],[138,23,138,25],[135,2,135,7],[135,8,135,12],[136,2,136,7],[136,8,136,12],[137,2,137,7],[137,8,137,12],[131,8,131,12],[132,8,132,12],[133,2,133,7],[133,8,133,12],[134,2,134,7],[134,8,134,12],[125,0,126,0],[125,13,125,25],[127,2,127,7],[127,8,127,12],[128,2,128,7],[129,2,129,7],[128,8,128,12],[129,8,129,12],[136,17,136,19],[136,20,136,22],[136,23,136,25],[125,2,126,7],[125,8,126,12],[130,2,130,7],[131,2,131,7],[132,2,132,7],[130,8,130,12],[134,17,134,19],[134,20,134,22],[134,23,134,25],[135,17,135,19],[135,20,135,22],[135,23,135,25],[132,17,132,19],[132,20,132,22],[132,23,132,25],[133,17,133,19],[133,20,133,22],[133,23,133,25],[132,13,132,15],[133,13,133,15],[134,13,134,15],[135,13,135,15],[125,1,126,1],[130,17,130,19],[130,20,130,22],[130,23,130,25],[131,17,131,19],[131,20,131,22],[131,23,131,25],[128,17,128,19],[128,20,128,22],[128,23,128,25],[129,17,129,19],[129,20,129,22],[129,23,129,25],[129,13,129,15],[130,13,130,15],[131,13,131,15],[126,13,126,15],[90,22,90,23],[91,18,91,19],[91,20,91,21],[126,17,126,19],[126,20,126,22],[126,23,126,25],[127,17,127,19],[127,20,127,22],[127,23,127,25],[101,24,101,25],[98,24,99,25],[100,24,100,25],[103,24,103,25],[102,22,102,23],[102,24,102,25],[119,20,119,21],[106,22,106,23],[106,24,106,25],[107,20,107,21],[107,22,107,23],[107,24,107,25],[108,20,108,21],[86,0,87,0],[86,1,87,8],[86,9,87,17],[93,24,93,25],[88,9,88,17],[89,9,89,17],[90,9,90,17],[91,9,91,17],[92,9,92,17],[93,9,93,17],[86,24,87,25],[88,24,88,25],[89,24,89,25],[90,24,90,25],[91,24,91,25],[92,24,92,25],[92,18,92,19],[92,20,92,21],[92,22,92,23],[93,18,93,19],[93,20,93,21],[93,22,93,23],[90,18,90,19],[90,20,90,21],[4,4,4,16],[5,4,5,16],[47,9,47,10],[61,17,61,18],[62,17,62,18],[57,21,57,23],[64,21,64,23],[92,2,92,8],[93,2,93,8],[88,2,88,8],[89,2,89,8],[90,2,90,8],[91,2,91,8],[67,10,67,12],[67,21,67,23],[69,21,69,23],[86,20,87,21],[86,22,87,23],[88,18,88,19],[88,20,88,21],[88,22,88,23],[89,18,89,19],[89,20,89,21],[89,22,89,23],[0,0,0,25],[54,17,54,18],[23,2,23,3],[23,9,23,10],[23,17,23,18],[21,9,21,10],[22,13,22,21],[27,10,27,12],[66,21,66,23],[44,9,44,10],[42,9,42,10],[43,9,43,10],[40,9,40,10],[45,9,45,10],[46,9,46,10],[29,11,29,12],[30,11,30,12],[31,11,31,12],[32,11,32,12],[34,11,34,12],[33,11,33,12],[8,0,11,17],[2,19,11,25]]}
["Lehensbogen"]
[]
["Nummer des Lehens:",null,null,null,null,null,null,1,null,null,null,null,null,null,null,null,null,null,null,"Wappen"]
[]
["Name:",null,null,null,{"$f":"VLOOKUP($H$3,Parameter!$A:$C,2,FALSE)","v":0}]
["Herrscher:",null,null,null,{"$f":"VLOOKUP($H$3,Parameter!$A:$C,3,FALSE)","v":0}]
[]
["Kurzbeschreibung:"]
[]
[]
[]
[]
[]
["Kerndaten des Lehens"]
[]
["Landschaft:",null,null,null,null,null,null,{"$f":"VLOOKUP($H$3,Parameter!$A:$O,5,FALSE)","v":"Flussgebiet"},null,null,null,null,null,null,null,null,null,null,null,null,null,null,null,"Stufe",null,{"$f":"VLOOKUP($H$3,Parameter!$A:$O,4,FALSE)","v":4}]
["Landmarken:",null,null,null,null,null,null,{"$f":"VLOOKUP($H$3,Parameter!$A:$O,9,FALSE)","v":"altes Kaer (geöffnet)"},null,null,null,null,null,null,null,null,null,null,null,null,null,null,null,"Stufe",null,{"$f":"VLOOKUP($H$3,Parameter!$A:$O,8,FALSE)","v":1}]
["Verseuchungsgrad:",null,null,null,null,null,null,{"$f":"VLOOKUP($H$3,Parameter!$A:$O,13,FALSE)","v":"Kultisten"},null,null,null,null,null,null,null,null,null,null,null,null,null,null,null,"Stufe",null,{"$f":"VLOOKUP($H$3,Parameter!$A:$O,12,FALSE)","v":5}]
[]
["Bevölkerungsstand"]
[]
["aktuelle Bevölkerungszahl:",null,null,null,null,null,null,null,null,{"$f":"C24*(J24+R24)","v":135.00000000000003},null,null,null,"einsetzbare Arbeitskräfte:",null,null,null,null,null,null,null,{"$f":"ROUNDDOWN($J$22/'Parameter II'!$D$4,0)","v":4}]
["Erstermittlung nach:",null,null,null,null,null,null,null,null,null,null,null,null,"Abrunden(Bevölkerung/30;0)"]
["Basis:",null,{"$f":"'Parameter II'!D2","v":150},null,"*(","Landschaft:",null,null,null,{"$f":"VLOOKUP($Z$16,'Parameter II'!$A$9:$C$12,3,FALSE)","v":1.1000000000000001},null,"+","Verseuchung:",null,null,null,null,{"$f":"VLOOKUP(Z18,'Parameter II'!A17:E24,5,FALSE)","v":-0.2},null,")"]
[]
["Bevölkerungsentwicklung"]
[]
["Entwicklung eurer Bevölkerung:",null,null,null,null,null,null,null,null,null,{"$f":"SUM(L30:M35)","v":1.9999999999999997E-2},null,null,null,null,"Ernährung:"]
["durch:",null,null,null,null,null,null,null,null,null,null,null,null,null,null,"Pro Arbeitskraft braucht ihr 1x Nahrung."]
[null,"Basis:",null,null,null,null,null,null,null,null,null,{"$f":"'Parameter II'!$D$3","v":0.02}]
["+","Stimmung:",null,null,null,null,null,null,null,null,null,{"$f":"VLOOKUP($Q$41,'Parameter II'!$A$28:$D$34,4,FALSE)","v":0},null,null,null,"Nahrung",null,null,"im Lager:",null,null,{"$f":"SUMIF($I$128:$M$158,$P$31,$X$128:$X$158)","v":4}]
["+","Landmarke:",null,null,null,null,null,null,null,null,null,{"$f":"VLOOKUP($Z$17,'Parameter II'!$A$38:$D$49,4,FALSE)","v":0.01},null,null,null,"Bedarf:",null,null,null,null,null,{"$f":"V22*-1","v":-4}]
["+","Steuern:",null,null,null,null,null,null,null,null,null,{"$f":"IFERROR(VLOOKUP($R$55,'Parameter II'!$A$53:$C$84,3,FALSE),IF($R$55<-5,'Parameter II'!$C$53,'Parameter II'!$C$84))","v":0},null,null,null,"Ausgabe",null,null,null,null,null,6]
["+","Verseuchung:",null,null,null,null,null,null,null,null,null,{"$f":"VLOOKUP($Z$18,'Parameter II'!$A$17:$D$24,4,FALSE)","v":-0.01},null,null,null,"Ergebnis",null,null,null,null,null,{"$f":"V32+V33","v":2}]
["+","Boni aus Erweiterungen:",null,null,null,null,null,null,null,null,null,{"$f":"SUMIF($G$165:$J$185,\"Volk\",$K$165:$L$185)+SUMIF($M$165:$P$185,\"Volk\",$Q$165:$R$185)","v":0}]
[]
["voraussichtliche Bevölkerung nächste Runde:",null,null,null,null,null,null,null,null,null,null,null,null,null,null,{"$f":"ROUNDUP(J22*(100%+K28),0)","v":138}]
[]
["Einstellung des Volkes euch gegenüber:"]
[]
["Stimmungsindex:",null,null,null,null,null,null,null,null,{"$f":"SUM(J43:K48)","v":36},null,null,null,null,"Stufe:",null,{"$f":"IFERROR(VLOOKUP($J$41+$D$47,'Parameter II'!$F$28:$H$98,2,FALSE),IF((J43+D47)<0,0,6))","v":3},"=",{"$f":"VLOOKUP(Q41,'Parameter II'!$G$28:$H$98,2,FALSE)","v":"wirtschaftlicher Gegenspieler"}]
["durch:"]
[null,"Basiswert:",null,null,null,null,null,null,null,{"$f":"VLOOKUP($H$3,Parameter!$A:$P,16,FALSE)","v":35}]
["+","Steuern:",null,null,null,null,null,null,null,{"$f":"VLOOKUP(R55,'Parameter II'!A53:D84,4,FALSE)","v":0}]
["+","Boni aus Erweiterungen:",null,null,null,null,null,null,null,{"$f":"SUMIF($G$165:$J$185,\"Stimmung\",$K$165:$L$185)+SUMIF($M$165:$P$185,\"Stimmung\",$Q$165:$R$185)","v":0}]
["+","Menge Nahrung:",null,null,null,null,null,null,null,{"$f":"V34","v":2}]
["+","Nahrungsmittelvielfalt:",null,null,null,null,null,null,null,{"$f":"SUMIF($I$128:$M$158,$P$31,$AB$128:$AB$158)-1","v":0}]
["+","Verseuchung",null,null,null,null,null,null,null,{"$f":"VLOOKUP($Z$18,'Parameter II'!$A$17:$F$24,6,FALSE)","v":-1}]
[]
[]
["Steuern & Zoll"]
[]
["Steuer"]
[]
["Steuerbetrag pro Einwohner pro Monat:",null,null,null,null,null,null,null,null,null,null,null,null,null,null,null,null,1,null,"in Silber"]
["Das Volk wertet eure Steuerpolitik als:",null,null,null,null,null,null,null,null,null,null,null,null,null,null,null,null,{"$f":"VLOOKUP($R$55,'Parameter II'!$A$53:$C$84,2,FALSE)","v":"normale Steuern"}]
[]
["Das Steueraufkommen Eurer Provinz beläuft sich diese Runde auf:",null,null,null,null,null,null,null,null,null,null,null,null,null,null,null,null,null,null,null,null,{"$f":"J22*R55","v":135.00000000000003},null,null,"in S"]
[]
["Zoll"]
[]
["Zoll pro Passage fremder Händler durch eure Provinz:",null,null,null,null,null,null,null,null,null,null,null,null,null,null,null,null,null,null,"in Silber"]
["Passagen fremder Händler nach Phase 3:",null,null,null,null,null,null,null,null,null,null,null,null,null,null,null,null,null,null,"Anzahl"]
[]
["Zolleinnahmen in dieser Runde (nach Phase 3)",null,null,null,null,null,null,null,null,null,null,null,null,null,null,null,null,null,null,null,null,{"$f":"R62*R63","v":0},null,null,"in S"]
[]
["Gesamteinnahmen aus Steuer und Zoll:",null,null,null,null,null,null,null,null,null,null,null,null,null,null,null,null,null,null,null,null,{"$f":"V58+V65","v":135.00000000000003},null,null,"in S"]
["Steuersatz des Königreiches:",null,null,null,null,null,null,null,null,null,{"$f":"IF($V$67<='Parameter II'!$B$87,'Parameter II'!$C$87,\nIF($V$67<='Parameter II'!$B$88,'Parameter II'!$C$88,\nIF($V$67<='Parameter II'!$B$89,'Parameter II'!$C$89,\nIF($V$67<='Parameter II'!$B$90,'Parameter II'!$C$90,'Parameter II'!$C$91))))","v":0.05},null,null,"abzuführende Steuer:",null,null,null,null,null,null,null,{"$f":"ROUND(V67*-K68,0)","v":-7},null,null,"in S"]
[]
["Eure Einnahmen aus Steuern und Zöllen",null,null,null,null,null,null,null,null,null,null,null,null,null,null,null,null,null,null,null,null,{"$f":"SUM(V67:X68)","v":128.00000000000003},null,null,"in S"]
[]
["Einnahmen aus Warenverkäufen:",null,null,null,null,null,null,null,null,null,null,null,null,null,null,null,null,null,null,null,null,null,null,null,"in S"]
["Kosten für Unterhalt von Produktionsstätten",null,null,null,null,null,null,null,null,null,null,null,null,null,null,null,null,null,null,null,null,{"$f":"Q121*-1","v":0},null,null,"in S"]
["laufende Kosten für Erweiterungen & Spezialisten",null,null,null,null,null,null,null,null,null,null,null,null,null,null,null,null,null,null,null,null,{"$f":"Y186*-1","v":0},null,null,"in S"]
["Baukosten",null,null,null,null,null,null,null,null,null,null,null,null,null,null,null,null,null,null,null,null,null,null,null,"in S"]
[]
["Gewinn / Verlust laufende Runde",null,null,null,null,null,null,null,null,null,null,null,null,null,null,null,null,null,null,null,null,{"$f":"SUM(V70:X75)","v":128.00000000000003},null,null,"in S"]
[]
["Euer Vermögen zu Beginn:",null,null,null,null,null,null,null,null,null,null,null,null,null,null,null,null,null,null,null,null,0,null,null,"in S"]
["+/- Gewinn / Verlust",null,null,null,null,null,null,null,null,null,null,null,null,null,null,null,null,null,null,null,null,{"$f":"V77","v":128.00000000000003},null,null,"in S"]
["Euer Vermögen am Ende der Runde",null,null,null,null,null,null,null,null,null,null,null,null,null,null,null,null,null,null,null,null,{"$f":"V79+V80","v":128.00000000000003},null,null,"in S"]
[]
["Produktion"]
[]
["Rohstoffe"]
[]
["Nr.","Produktionsstätte",null,null,null,null,null,null,null,"produziert",null,null,null,null,null,null,null,null,"pro MA",null,"Max. MA",null,"Anz. MA*",null,"Produktion"]
[]
[1,{"$f":"VLOOKUP(Lehensbogen!H3,Parameter!A:F,6,FALSE)","v":2},{"$f":"IFERROR(VLOOKUP($Z$16&$B89,Produktion!$A:$F,2,FALSE),\"\")","v":"Floßwirtschaft"},null,null,null,null,null,null,{"$f":"IFERROR(VLOOKUP($Z$16&$B89,Produktion!$A:$F,3,FALSE),\"\")","v":"Holz"},null,null,null,null,null,null,null,null,{"$f":"IFERROR(VLOOKUP($Z$16&$B89,Produktion!$A:$F,5,FALSE)+SUMIF($G$165:$J$185,$J89,$K$165:$L$185),\"\")","v":4},null,{"$f":"IFERROR(VLOOKUP($Z$16&$B89,Produktion!$A:$F,6,FALSE),\"\")","v":3},null,3,null,{"$f":"IFERROR(S89*W89,\"\")","v":12}]
[2,null,{"$f":"IFERROR(VLOOKUP($Z$16&$B90,Produktion!$A:$F,2,FALSE),\"\")","v":""},null,null,null,null,null,null,{"$f":"IFERROR(VLOOKUP($Z$16&$B90,Produktion!$A:$F,3,FALSE),\"\")","v":""},null,null,null,null,null,null,null,null,{"$f":"IFERROR(VLOOKUP($Z$16&$B90,Produktion!$A:$F,5,FALSE)+SUMIF($G$165:$J$185,$J90,$K$165:$L$185),\"\")","v":""},null,{"$f":"IFERROR(VLOOKUP($Z$16&$B90,Produktion!$A:$F,6,FALSE),\"\")","v":""},null,null,null,{"$f":"IFERROR(S90*W90,\"\")","v":""}]
[3,null,{"$f":"IFERROR(VLOOKUP($Z$16&$B91,Produktion!$A:$F,2,FALSE),\"\")","v":""},null,null,null,null,null,null,{"$f":"IFERROR(VLOOKUP($Z$16&$B91,Produktion!$A:$F,3,FALSE),\"\")","v":""},null,null,null,null,null,null,null,null,{"$f":"IFERROR(VLOOKUP($Z$16&$B91,Produktion!$A:$F,5,FALSE)+SUMIF($G$165:$J$185,$J91,$K$165:$L$185),\"\")","v":""},null,{"$f":"IFERROR(VLOOKUP($Z$16&$B91,Produktion!$A:$F,6,FALSE),\"\")","v":""},null,null,null,""]
[4,null,{"$f":"IFERROR(VLOOKUP($Z$16&$B92,Produktion!$A:$F,2,FALSE),\"\")","v":""},null,null,null,null,null,null,{"$f":"IFERROR(VLOOKUP($Z$16&$B92,Produktion!$A:$F,3,FALSE),\"\")","v":""},null,null,null,null,null,null,null,null,{"$f":"IFERROR(VLOOKUP($Z$16&$B92,Produktion!$A:$F,5,FALSE)+SUMIF($G$165:$J$185,$J92,$K$165:$L$185),\"\")","v":""},null,{"$f":"IFERROR(VLOOKUP($Z$16&$B92,Produktion!$A:$F,6,FALSE),\"\")","v":""},null,null,null,""]
[5,null,{"$f":"IFERROR(VLOOKUP($Z$16&$B93,Produktion!$A:$F,2,FALSE),\"\")","v":""},null,null,null,null,null,null,{"$f":"IFERROR(VLOOKUP($Z$16&$B93,Produktion!$A:$F,3,FALSE),\"\")","v":""},null,null,null,null,null,null,null,null,{"$f":"IFERROR(VLOOKUP($Z$16&$B93,Produktion!$A:$F,5,FALSE)+SUMIF($G$165:$J$185,$J93,$K$165:$L$185),\"\")","v":""},null,{"$f":"IFERROR(VLOOKUP($Z$16&$B93,Produktion!$A:$F,6,FALSE),\"\")","v":""},null,null,null,""]
[6,null,{"$f":"IFERROR(VLOOKUP($Z$16&$B94,Produktion!$A:$F,2,FALSE),\"\")","v":""},null,null,null,null,null,null,{"$f":"IFERROR(VLOOKUP($Z$16&$B94,Produktion!$A:$F,3,FALSE),\"\")","v":""},null,null,null,null,null,null,null,null,{"$f":"IFERROR(VLOOKUP($Z$16&$B94,Produktion!$A:$F,5,FALSE)+SUMIF($G$165:$J$185,$J94,$K$165:$L$185),\"\")","v":""},null,{"$f":"IFERROR(VLOOKUP($Z$16&$B94,Produktion!$A:$F,6,FALSE),\"\")","v":""},null,null,null,""]
["*von euch eingesetzte Arbeitskräfte"]
[]
["Handelswaren"]
[]
["Bezeichnung",null,null,null,null,"produziert",null,null,null,null,"Unterhalt",null,null,null,null,null,"Kosten in S",null,"pro MA",null,"Max. MA",null,"Anz. MA*",null,"Produktion"]
[null,null,null,null,null,null,null,null,null,null,"R1 ",null,"A1","R2",null,"A2"]
[null,null,null,null,null,{"$f":"IFERROR(VLOOKUP($A101,Handelwaren!$B:$K,2,FALSE),\"\")","v":""},null,null,null,null,{"$f":"IFERROR(VLOOKUP($A101,Handelwaren!$B:$K,7,FALSE),\"\")","v":""},null,{"$f":"IFERROR(VLOOKUP($A101,Handelwaren!$B:$K,6,FALSE),\"\")","v":""},{"$f":"IFERROR(VLOOKUP($A101,Handelwaren!$B:$K,9,FALSE),\"\")","v":""},null,{"$f":"IFERROR(VLOOKUP($A101,Handelwaren!$B:$K,8,FALSE),\"\")","v":""},{"$f":"IFERROR(VLOOKUP($A101,Handelwaren!$B:$K,10,FALSE),\"\")","v":""},null,{"$f":"IFERROR(VLOOKUP($A101,Handelwaren!$B:$K,4,FALSE),\"\")","v":""},null,{"$f":"IFERROR(VLOOKUP($A101,Handelwaren!$B:$K,5,FALSE),\"\")","v":""},null,null,null,{"$f":"IFERROR(S101*W101,\"\")","v":""}]
[null,null,null,null,null,{"$f":"IFERROR(VLOOKUP($A102,Handelwaren!$B:$K,2,FALSE),\"\")","v":""},null,null,null,null,{"$f":"IFERROR(VLOOKUP($A102,Handelwaren!$B:$K,7,FALSE),\"\")","v":""},null,{"$f":"IFERROR(VLOOKUP($A102,Handelwaren!$B:$K,6,FALSE),\"\")","v":""},{"$f":"IFERROR(VLOOKUP($A102,Handelwaren!$B:$K,9,FALSE),\"\")","v":""},null,{"$f":"IFERROR(VLOOKUP($A102,Handelwaren!$B:$K,8,FALSE),\"\")","v":""},{"$f":"IFERROR(VLOOKUP($A102,Handelwaren!$B:$K,10,FALSE),\"\")","v":""},null,{"$f":"IFERROR(VLOOKUP($A102,Handelwaren!$B:$K,4,FALSE),\"\")","v":""},null,{"$f":"IFERROR(VLOOKUP($A102,Handelwaren!$B:$K,5,FALSE),\"\")","v":""},null,null,null,{"$f":"IFERROR(S102*W102,\"\")","v":""}]
[null,null,null,null,null,{"$f":"IFERROR(VLOOKUP($A103,Handelwaren!$B:$K,2,FALSE),\"\")","v":""},null,null,null,null,{"$f":"IFERROR(VLOOKUP($A103,Handelwaren!$B:$K,7,FALSE),\"\")","v":""},null,{"$f":"IFERROR(VLOOKUP($A103,Handelwaren!$B:$K,6,FALSE),\"\")","v":""},{"$f":"IFERROR(VLOOKUP($A103,Handelwaren!$B:$K,9,FALSE),\"\")","v":""},null,{"$f":"IFERROR(VLOOKUP($A103,Handelwaren!$B:$K,8,FALSE),\"\")","v":""},{"$f":"IFERROR(VLOOKUP($A103,Handelwaren!$B:$K,10,FALSE),\"\")","v":""},null,{"$f":"IFERROR(VLOOKUP($A103,Handelwaren!$B:$K,4,FALSE),\"\")","v":""},null,{"$f":"IFERROR(VLOOKUP($A103,Handelwaren!$B:$K,5,FALSE),\"\")","v":""},null,null,null,""]
[null,null,null,null,null,{"$f":"IFERROR(VLOOKUP($A104,Handelwaren!$B:$K,2,FALSE),\"\")","v":""},null,null,null,null,{"$f":"IFERROR(VLOOKUP($A104,Handelwaren!$B:$K,7,FALSE),\"\")","v":""},null,{"$f":"IFERROR(VLOOKUP($A104,Handelwaren!$B:$K,6,FALSE),\"\")","v":""},{"$f":"IFERROR(VLOOKUP($A104,Handelwaren!$B:$K,9,FALSE),\"\")","v":""},null,{"$f":"IFERROR(VLOOKUP($A104,Handelwaren!$B:$K,8,FALSE),\"\")","v":""},{"$f":"IFERROR(VLOOKUP($A104,Handelwaren!$B:$K,10,FALSE),\"\")","v":""},null,{"$f":"IFERROR(VLOOKUP($A104,Handelwaren!$B:$K,4,FALSE),\"\")","v":""},null,{"$f":"IFERROR(VLOOKUP($A104,Handelwaren!$B:$K,5,FALSE),\"\")","v":""},null,null,null,"",null,null,null,null,"Rohstoffbedarfsrechner"]
[null,null,null,null,null,{"$f":"IFERROR(VLOOKUP($A105,Handelwaren!$B:$K,2,FALSE),\"\")","v":""},null,null,null,null,{"$f":"IFERROR(VLOOKUP($A105,Handelwaren!$B:$K,7,FALSE),\"\")","v":""},null,{"$f":"IFERROR(VLOOKUP($A105,Handelwaren!$B:$K,6,FALSE),\"\")","v":""},{"$f":"IFERROR(VLOOKUP($A105,Handelwaren!$B:$K,9,FALSE),\"\")","v":""},null,{"$f":"IFERROR(VLOOKUP($A105,Handelwaren!$B:$K,8,FALSE),\"\")","v":""},{"$f":"IFERROR(VLOOKUP($A105,Handelwaren!$B:$K,10,FALSE),\"\")","v":""},null,{"$f":"IFERROR(VLOOKUP($A105,Handelwaren!$B:$K,4,FALSE),\"\")","v":""},null,{"$f":"IFERROR(VLOOKUP($A105,Handelwaren!$B:$K,5,FALSE),\"\")","v":""},null,null,null,"",null,null,null,null,"Kräuter",null,null,{"$f":"SUMIF($K$101:$L$120,$AD105,$M$101:$M$120)+SUMIF($N$101:$O$120,$AD105,$P$101:$P$120)","v":0}]
[null,null,null,null,null,{"$f":"IFERROR(VLOOKUP($A106,Handelwaren!$B:$K,2,FALSE),\"\")","v":""},null,null,null,null,{"$f":"IFERROR(VLOOKUP($A106,Handelwaren!$B:$K,7,FALSE),\"\")","v":""},null,{"$f":"IFERROR(VLOOKUP($A106,Handelwaren!$B:$K,6,FALSE),\"\")","v":""},{"$f":"IFERROR(VLOOKUP($A106,Handelwaren!$B:$K,9,FALSE),\"\")","v":""},null,{"$f":"IFERROR(VLOOKUP($A106,Handelwaren!$B:$K,8,FALSE),\"\")","v":""},{"$f":"IFERROR(VLOOKUP($A106,Handelwaren!$B:$K,10,FALSE),\"\")","v":""},null,{"$f":"IFERROR(VLOOKUP($A106,Handelwaren!$B:$K,4,FALSE),\"\")","v":""},null,{"$f":"IFERROR(VLOOKUP($A106,Handelwaren!$B:$K,5,FALSE),\"\")","v":""},null,null,null,"",null,null,null,null,"Korn",null,null,{"$f":"SUMIF($K$101:$L$120,$AD106,$M$101:$M$120)+SUMIF($N$101:$O$120,$AD106,$P$101:$P$120)","v":0}]
[null,null,null,null,null,{"$f":"IFERROR(VLOOKUP($A107,Handelwaren!$B:$K,2,FALSE),\"\")","v":""},null,null,null,null,{"$f":"IFERROR(VLOOKUP($A107,Handelwaren!$B:$K,7,FALSE),\"\")","v":""},null,{"$f":"IFERROR(VLOOKUP($A107,Handelwaren!$B:$K,6,FALSE),\"\")","v":""},{"$f":"IFERROR(VLOOKUP($A107,Handelwaren!$B:$K,9,FALSE),\"\")","v":""},null,{"$f":"IFERROR(VLOOKUP($A107,Handelwaren!$B:$K,8,FALSE),\"\")","v":""},{"$f":"IFERROR(VLOOKUP($A107,Handelwaren!$B:$K,10,FALSE),\"\")","v":""},null,{"$f":"IFERROR(VLOOKUP($A107,Handelwaren!$B:$K,4,FALSE),\"\")","v":""},null,{"$f":"IFERROR(VLOOKUP($A107,Handelwaren!$B:$K,5,FALSE),\"\")","v":""},null,null,null,{"$f":"IFERROR(S107*W107,\"\")","v":""},null,null,null,null,"Holz",null,null,0]
[null,null,null,null,null,{"$f":"IFERROR(VLOOKUP($A108,Handelwaren!$B:$K,2,FALSE),\"\")","v":""},null,null,null,null,{"$f":"IFERROR(VLOOKUP($A108,Handelwaren!$B:$K,7,FALSE),\"\")","v":""},null,{"$f":"IFERROR(VLOOKUP($A108,Handelwaren!$B:$K,6,FALSE),\"\")","v":""},{"$f":"IFERROR(VLOOKUP($A108,Handelwaren!$B:$K,9,FALSE),\"\")","v":""},null,{"$f":"IFERROR(VLOOKUP($A108,Handelwaren!$B:$K,8,FALSE),\"\")","v":""},{"$f":"IFERROR(VLOOKUP($A108,Handelwaren!$B:$K,10,FALSE),\"\")","v":""},null,{"$f":"IFERROR(VLOOKUP($A108,Handelwaren!$B:$K,4,FALSE),\"\")","v":""},null,{"$f":"IFERROR(VLOOKUP($A108,Handelwaren!$B:$K,5,FALSE),\"\")","v":""},null,null,null,"",null,null,null,null,"Hopfen",null,null,0]
[null,null,null,null,null,{"$f":"IFERROR(VLOOKUP($A109,Handelwaren!$B:$K,2,FALSE),\"\")","v":""},null,null,null,null,{"$f":"IFERROR(VLOOKUP($A109,Handelwaren!$B:$K,7,FALSE),\"\")","v":""},null,{"$f":"IFERROR(VLOOKUP($A109,Handelwaren!$B:$K,6,FALSE),\"\")","v":""},{"$f":"IFERROR(VLOOKUP($A109,Handelwaren!$B:$K,9,FALSE),\"\")","v":""},null,{"$f":"IFERROR(VLOOKUP($A109,Handelwaren!$B:$K,8,FALSE),\"\")","v":""},{"$f":"IFERROR(VLOOKUP($A109,Handelwaren!$B:$K,10,FALSE),\"\")","v":""},null,{"$f":"IFERROR(VLOOKUP($A109,Handelwaren!$B:$K,4,FALSE),\"\")","v":""},null,{"$f":"IFERROR(VLOOKUP($A109,Handelwaren!$B:$K,5,FALSE),\"\")","v":""},null,null,null,"",null,null,null,null,"Leder",null,null,0]
[null,null,null,null,null,{"$f":"IFERROR(VLOOKUP($A110,Handelwaren!$B:$K,2,FALSE),\"\")","v":""},null,null,null,null,{"$f":"IFERROR(VLOOKUP($A110,Handelwaren!$B:$K,7,FALSE),\"\")","v":""},null,{"$f":"IFERROR(VLOOKUP($A110,Handelwaren!$B:$K,6,FALSE),\"\")","v":""},{"$f":"IFERROR(VLOOKUP($A110,Handelwaren!$B:$K,9,FALSE),\"\")","v":""},null,{"$f":"IFERROR(VLOOKUP($A110,Handelwaren!$B:$K,8,FALSE),\"\")","v":""},{"$f":"IFERROR(VLOOKUP($A110,Handelwaren!$B:$K,10,FALSE),\"\")","v":""},null,{"$f":"IFERROR(VLOOKUP($A110,Handelwaren!$B:$K,4,FALSE),\"\")","v":""},null,{"$f":"IFERROR(VLOOKUP($A110,Handelwaren!$B:$K,5,FALSE),\"\")","v":""},null,null,null,"",null,null,null,null,"Gold",null,null,0]
[null,null,null,null,null,{"$f":"IFERROR(VLOOKUP($A111,Handelwaren!$B:$K,2,FALSE),\"\")","v":""},null,null,null,null,{"$f":"IFERROR(VLOOKUP($A111,Handelwaren!$B:$K,7,FALSE),\"\")","v":""},null,{"$f":"IFERROR(VLOOKUP($A111,Handelwaren!$B:$K,6,FALSE),\"\")","v":""},{"$f":"IFERROR(VLOOKUP($A111,Handelwaren!$B:$K,9,FALSE),\"\")","v":""},null,{"$f":"IFERROR(VLOOKUP($A111,Handelwaren!$B:$K,8,FALSE),\"\")","v":""},{"$f":"IFERROR(VLOOKUP($A111,Handelwaren!$B:$K,10,FALSE),\"\")","v":""},null,{"$f":"IFERROR(VLOOKUP($A111,Handelwaren!$B:$K,4,FALSE),\"\")","v":""},null,{"$f":"IFERROR(VLOOKUP($A111,Handelwaren!$B:$K,5,FALSE),\"\")","v":""},null,null,null,"",null,null,null,null,"Eisen",null,null,0]
[null,null,null,null,null,{"$f":"IFERROR(VLOOKUP($A112,Handelwaren!$B:$K,2,FALSE),\"\")","v":""},null,null,null,null,{"$f":"IFERROR(VLOOKUP($A112,Handelwaren!$B:$K,7,FALSE),\"\")","v":""},null,{"$f":"IFERROR(VLOOKUP($A112,Handelwaren!$B:$K,6,FALSE),\"\")","v":""},{"$f":"IFERROR(VLOOKUP($A112,Handelwaren!$B:$K,9,FALSE),\"\")","v":""},null,{"$f":"IFERROR(VLOOKUP($A112,Handelwaren!$B:$K,8,FALSE),\"\")","v":""},{"$f":"IFERROR(VLOOKUP($A112,Handelwaren!$B:$K,10,FALSE),\"\")","v":""},null,{"$f":"IFERROR(VLOOKUP($A112,Handelwaren!$B:$K,4,FALSE),\"\")","v":""},null,{"$f":"IFERROR(VLOOKUP($A112,Handelwaren!$B:$K,5,FALSE),\"\")","v":""},null,null,null,"",null,null,null,null,"Wolle",null,null,0]
[null,null,null,null,null,{"$f":"IFERROR(VLOOKUP($A113,Handelwaren!$B:$K,2,FALSE),\"\")","v":""},null,null,null,null,{"$f":"IFERROR(VLOOKUP($A113,Handelwaren!$B:$K,7,FALSE),\"\")","v":""},null,{"$f":"IFERROR(VLOOKUP($A113,Handelwaren!$B:$K,6,FALSE),\"\")","v":""},{"$f":"IFERROR(VLOOKUP($A113,Handelwaren!$B:$K,9,FALSE),\"\")","v":""},null,{"$f":"IFERROR(VLOOKUP($A113,Handelwaren!$B:$K,8,FALSE),\"\")","v":""},{"$f":"IFERROR(VLOOKUP($A113,Handelwaren!$B:$K,10,FALSE),\"\")","v":""},null,{"$f":"IFERROR(VLOOKUP($A113,Handelwaren!$B:$K,4,FALSE),\"\")","v":""},null,{"$f":"IFERROR(VLOOKUP($A113,Handelwaren!$B:$K,5,FALSE),\"\")","v":""},null,null,null,"",null,null,null,null,"Kohle",null,null,0]
[null,null,null,null,null,{"$f":"IFERROR(VLOOKUP($A114,Handelwaren!$B:$K,2,FALSE),\"\")","v":""},null,null,null,null,{"$f":"IFERROR(VLOOKUP($A114,Handelwaren!$B:$K,7,FALSE),\"\")","v":""},null,{"$f":"IFERROR(VLOOKUP($A114,Handelwaren!$B:$K,6,FALSE),\"\")","v":""},{"$f":"IFERROR(VLOOKUP($A114,Handelwaren!$B:$K,9,FALSE),\"\")","v":""},null,{"$f":"IFERROR(VLOOKUP($A114,Handelwaren!$B:$K,8,FALSE),\"\")","v":""},{"$f":"IFERROR(VLOOKUP($A114,Handelwaren!$B:$K,10,FALSE),\"\")","v":""},null,{"$f":"IFERROR(VLOOKUP($A114,Handelwaren!$B:$K,4,FALSE),\"\")","v":""},null,{"$f":"IFERROR(VLOOKUP($A114,Handelwaren!$B:$K,5,FALSE),\"\")","v":""},null,null,null,"",null,null,null,null,"Werkzeug",null,null,0]
[null,null,null,null,null,{"$f":"IFERROR(VLOOKUP($A115,Handelwaren!$B:$K,2,FALSE),\"\")","v":""},null,null,null,null,{"$f":"IFERROR(VLOOKUP($A115,Handelwaren!$B:$K,7,FALSE),\"\")","v":""},null,{"$f":"IFERROR(VLOOKUP($A115,Handelwaren!$B:$K,6,FALSE),\"\")","v":""},{"$f":"IFERROR(VLOOKUP($A115,Handelwaren!$B:$K,9,FALSE),\"\")","v":""},null,{"$f":"IFERROR(VLOOKUP($A115,Handelwaren!$B:$K,8,FALSE),\"\")","v":""},{"$f":"IFERROR(VLOOKUP($A115,Handelwaren!$B:$K,10,FALSE),\"\")","v":""},null,{"$f":"IFERROR(VLOOKUP($A115,Handelwaren!$B:$K,4,FALSE),\"\")","v":""},null,{"$f":"IFERROR(VLOOKUP($A115,Handelwaren!$B:$K,5,FALSE),\"\")","v":""},null,null,null,"",null,null,null,null,"Edelsteine",null,null,0]
[null,null,null,null,null,{"$f":"IFERROR(VLOOKUP($A116,Handelwaren!$B:$K,2,FALSE),\"\")","v":""},null,null,null,null,{"$f":"IFERROR(VLOOKUP($A116,Handelwaren!$B:$K,7,FALSE),\"\")","v":""},null,{"$f":"IFERROR(VLOOKUP($A116,Handelwaren!$B:$K,6,FALSE),\"\")","v":""},{"$f":"IFERROR(VLOOKUP($A116,Handelwaren!$B:$K,9,FALSE),\"\")","v":""},null,{"$f":"IFERROR(VLOOKUP($A116,Handelwaren!$B:$K,8,FALSE),\"\")","v":""},{"$f":"IFERROR(VLOOKUP($A116,Handelwaren!$B:$K,10,FALSE),\"\")","v":""},null,{"$f":"IFERROR(VLOOKUP($A116,Handelwaren!$B:$K,4,FALSE),\"\")","v":""},null,{"$f":"IFERROR(VLOOKUP($A116,Handelwaren!$B:$K,5,FALSE),\"\")","v":""},null,null,null,""]
[null,null,null,null,null,{"$f":"IFERROR(VLOOKUP($A117,Handelwaren!$B:$K,2,FALSE),\"\")","v":""},null,null,null,null,{"$f":"IFERROR(VLOOKUP($A117,Handelwaren!$B:$K,7,FALSE),\"\")","v":""},null,{"$f":"IFERROR(VLOOKUP($A117,Handelwaren!$B:$K,6,FALSE),\"\")","v":""},{"$f":"IFERROR(VLOOKUP($A117,Handelwaren!$B:$K,9,FALSE),\"\")","v":""},null,{"$f":"IFERROR(VLOOKUP($A117,Handelwaren!$B:$K,8,FALSE),\"\")","v":""},{"$f":"IFERROR(VLOOKUP($A117,Handelwaren!$B:$K,10,FALSE),\"\")","v":""},null,{"$f":"IFERROR(VLOOKUP($A117,Handelwaren!$B:$K,4,FALSE),\"\")","v":""},null,{"$f":"IFERROR(VLOOKUP($A117,Handelwaren!$B:$K,5,FALSE),\"\")","v":""},null,null,null,""]
[null,null,null,null,null,{"$f":"IFERROR(VLOOKUP($A118,Handelwaren!$B:$K,2,FALSE),\"\")","v":""},null,null,null,null,{"$f":"IFERROR(VLOOKUP($A118,Handelwaren!$B:$K,7,FALSE),\"\")","v":""},null,{"$f":"IFERROR(VLOOKUP($A118,Handelwaren!$B:$K,6,FALSE),\"\")","v":""},{"$f":"IFERROR(VLOOKUP($A118,Handelwaren!$B:$K,9,FALSE),\"\")","v":""},null,{"$f":"IFERROR(VLOOKUP($A118,Handelwaren!$B:$K,8,FALSE),\"\")","v":""},{"$f":"IFERROR(VLOOKUP($A118,Handelwaren!$B:$K,10,FALSE),\"\")","v":""},null,{"$f":"IFERROR(VLOOKUP($A118,Handelwaren!$B:$K,4,FALSE),\"\")","v":""},null,{"$f":"IFERROR(VLOOKUP($A118,Handelwaren!$B:$K,5,FALSE),\"\")","v":""},null,null,null,""]
[null,null,null,null,null,{"$f":"IFERROR(VLOOKUP($A119,Handelwaren!$B:$K,2,FALSE),\"\")","v":""},null,null,null,null,{"$f":"IFERROR(VLOOKUP($A119,Handelwaren!$B:$K,7,FALSE),\"\")","v":""},null,{"$f":"IFERROR(VLOOKUP($A119,Handelwaren!$B:$K,6,FALSE),\"\")","v":""},{"$f":"IFERROR(VLOOKUP($A119,Handelwaren!$B:$K,9,FALSE),\"\")","v":""},null,{"$f":"IFERROR(VLOOKUP($A119,Handelwaren!$B:$K,8,FALSE),\"\")","v":""},{"$f":"IFERROR(VLOOKUP($A119,Handelwaren!$B:$K,10,FALSE),\"\")","v":""},null,{"$f":"IFERROR(VLOOKUP($A119,Handelwaren!$B:$K,4,FALSE),\"\")","v":""},null,{"$f":"IFERROR(VLOOKUP($A119,Handelwaren!$B:$K,5,FALSE),\"\")","v":""},null,null,null,""]
[null,null,null,null,null,{"$f":"IFERROR(VLOOKUP($A120,Handelwaren!$B:$K,2,FALSE),\"\")","v":""},null,null,null,null,{"$f":"IFERROR(VLOOKUP($A120,Handelwaren!$B:$K,7,FALSE),\"\")","v":""},null,{"$f":"IFERROR(VLOOKUP($A120,Handelwaren!$B:$K,6,FALSE),\"\")","v":""},{"$f":"IFERROR(VLOOKUP($A120,Handelwaren!$B:$K,9,FALSE),\"\")","v":""},null,{"$f":"IFERROR(VLOOKUP($A120,Handelwaren!$B:$K,8,FALSE),\"\")","v":""},{"$f":"IFERROR(VLOOKUP($A120,Handelwaren!$B:$K,10,FALSE),\"\")","v":""},null,{"$f":"IFERROR(VLOOKUP($A120,Handelwaren!$B:$K,4,FALSE),\"\")","v":""},null,{"$f":"IFERROR(VLOOKUP($A120,Handelwaren!$B:$K,5,FALSE),\"\")","v":""},null,null,null,""]
[null,null,null,null,null,null,null,null,null,null,null,null,null,null,null,null,{"$f":"SUM(Q101:R120)","v":0}]
[{"$f":"IF(SUM($W$89:$X$94,W101:X120)>$V$22,\"Ihr habt mehr Arbeitskräfte eingesetzt, als Euch zur Verfügung stehen!\",\nIF(SUM($W$89:$X$94)>$V$22,\"Ihr habt zuviele Arbeiter bei der Rohstoffgewinnung eingesetzt.\",\nIF(SUM($W$101:$X$120)>$V$22,\"Ihr habt zuviele Arbeiter bei den Handelwaren eingesetzt.\",\"\")))","v":""}]
[]
["Euer Lager"]
[]
["Nr.","A","Ware",null,null,null,null,null,"Gruppe",null,null,null,null,"Lagerveränderungen aus"]
[null,null,null,null,null,null,null,null,null,null,null,null,null,"Startwert",null,null,null,"Zugang",null,null,"Abgang*",null,null,"Lager"]
[1,"x",{"$f":"J89","v":"Holz"},null,null,null,null,null,{"$f":"IFERROR(VLOOKUP($C128,Produktion!$C$3:$D$27,2,FALSE),\"\")","v":"Rohstoff"},null,null,null,null,0,null,null,null,{"$f":"Y89","v":12},null,null,null,null,null,{"$f":"IFERROR(IF(B128=\"x\",N128+R128+U128,\"-\"),\"\")","v":12},null,null,null,1]
[2,"x",{"$f":"J90","v":""},null,null,null,null,null,{"$f":"IFERROR(VLOOKUP($C129,Produktion!$C$3:$D$27,2,FALSE),\"\")","v":""},null,null,null,null,0,null,null,null,{"$f":"Y90","v":""},null,null,null,null,null,{"$f":"IFERROR(IF(B129=\"x\",N129+R129+U129,\"-\"),\"\")","v":""},null,null,null,1]
[3,null,"",null,null,null,null,null,{"$f":"IFERROR(VLOOKUP($C130,Produktion!$C$3:$D$27,2,FALSE),\"\")","v":""},null,null,null,null,"-",null,null,null,"",null,null,null,null,null,"-",null,null,null,1]
[4,null,"",null,null,null,null,null,{"$f":"IFERROR(VLOOKUP($C131,Produktion!$C$3:$D$27,2,FALSE),\"\")","v":""},null,null,null,null,"-",null,null,null,"",null,null,null,null,null,"-",null,null,null,1]
[5,null,"",null,null,null,null,null,{"$f":"IFERROR(VLOOKUP($C132,Produktion!$C$3:$D$27,2,FALSE),\"\")","v":""},null,null,null,null,"-",null,null,null,"",null,null,null,null,null,"-",null,null,null,1]
[6,null,"",null,null,null,null,null,{"$f":"IFERROR(VLOOKUP($C133,Produktion!$C$3:$D$27,2,FALSE),\"\")","v":""},null,null,null,null,"-",null,null,null,"",null,null,null,null,null,"-",null,null,null,1]
[7,"x","Brot",null,null,null,null,null,{"$f":"IFERROR(VLOOKUP($C134,Lager!$A:$B,2,FALSE),\"\")","v":"Nahrung"},null,null,null,null,10,null,null,null,null,null,null,{"$f":"V33*-1","v":-6},null,null,{"$f":"IFERROR(IF(B134=\"x\",N134+R134+U134,\"-\"),\"\")","v":4},null,null,null,1]
[8,"x",null,null,null,null,null,null,{"$f":"IFERROR(VLOOKUP($C135,Lager!$A:$B,2,FALSE),\"\")","v":""},null,null,null,null,0,null,null,null,null,null,null,null,null,null,{"$f":"IFERROR(IF(B135=\"x\",N135+R135+U135,\"-\"),\"\")","v":0},null,null,null,1]
[9,null,null,null,null,null,null,null,{"$f":"IFERROR(VLOOKUP($C136,Lager!$A:$B,2,FALSE),\"\")","v":""},null,null,null,null,"-",null,null,null,null,null,null,null,null,null,"-",null,null,null,1]
[10,null,null,null,null,null,null,null,{"$f":"IFERROR(VLOOKUP($C137,Lager!$A:$B,2,FALSE),\"\")","v":""},null,null,null,null,"-",null,null,null,null,null,null,null,null,null,"-",null,null,null,1]
[11,null,null,null,null,null,null,null,{"$f":"IFERROR(VLOOKUP($C138,Lager!$A:$B,2,FALSE),\"\")","v":""},null,null,null,null,"-",null,null,null,null,null,null,null,null,null,"-",null,null,null,1]
[12,null,null,null,null,null,null,null,{"$f":"IFERROR(VLOOKUP($C139,Lager!$A:$B,2,FALSE),\"\")","v":""},null,null,null,null,"-",null,null,null,null,null,null,null,null,null,"-",null,null,null,1]
[13,null,null,null,null,null,null,null,{"$f":"IFERROR(VLOOKUP($C140,Lager!$A:$B,2,FALSE),\"\")","v":""},null,null,null,null,"-",null,null,null,null,null,null,null,null,null,"-",null,null,null,1]
[14,null,null,null,null,null,null,null,{"$f":"IFERROR(VLOOKUP($C141,Lager!$A:$B,2,FALSE),\"\")","v":""},null,null,null,null,"-",null,null,null,null,null,null,null,null,null,"-",null,null,null,1]
[15,null,null,null,null,null,null,null,{"$f":"IFERROR(VLOOKUP($C142,Lager!$A:$B,2,FALSE),\"\")","v":""},null,null,null,null,"-",null,null,null,null,null,null,null,null,null,"-",null,null,null,1]
[16,null,null,null,null,null,null,null,{"$f":"IFERROR(VLOOKUP($C143,Lager!$A:$B,2,FALSE),\"\")","v":""},null,null,null,null,"-",null,null,null,null,null,null,null,null,null,"-",null,null,null,1]
[17,null,null,null,null,null,null,null,{"$f":"IFERROR(VLOOKUP($C144,Lager!$A:$B,2,FALSE),\"\")","v":""},null,null,null,null,"-",null,null,null,null,null,null,null,null,null,"-",null,null,null,1]
[18,null,null,null,null,null,null,null,{"$f":"IFERROR(VLOOKUP($C145,Lager!$A:$B,2,FALSE),\"\")","v":""},null,null,null,null,"-",null,null,null,null,null,null,null,null,null,"-",null,null,null,1]
[19,null,null,null,null,null,null,null,{"$f":"IFERROR(VLOOKUP($C146,Lager!$A:$B,2,FALSE),\"\")","v":""},null,null,null,null,"-",null,null,null,null,null,null,null,null,null,"-",null,null,null,1]
[20,null,null,null,null,null,null,null,{"$f":"IFERROR(VLOOKUP($C147,Lager!$A:$B,2,FALSE),\"\")","v":""},null,null,null,null,"-",null,null,null,null,null,null,null,null,null,"-",null,null,null,1]
[21,null,null,null,null,null,null,null,{"$f":"IFERROR(VLOOKUP($C148,Lager!$A:$B,2,FALSE),\"\")","v":""},null,null,null,null,"-",null,null,null,null,null,null,null,null,null,"-",null,null,null,1]
[22,null,null,null,null,null,null,null,{"$f":"IFERROR(VLOOKUP($C149,Lager!$A:$B,2,FALSE),\"\")","v":""},null,null,null,null,"-",null,null,null,null,null,null,null,null,null,"-",null,null,null,1]
[23,null,null,null,null,null,null,null,{"$f":"IFERROR(VLOOKUP($C150,Lager!$A:$B,2,FALSE),\"\")","v":""},null,null,null,null,"-",null,null,null,null,null,null,null,null,null,"-",null,null,null,1]
[24,null,null,null,null,null,null,null,{"$f":"IFERROR(VLOOKUP($C151,Lager!$A:$B,2,FALSE),\"\")","v":""},null,null,null,null,"-",null,null,null,null,null,null,null,null,null,"-",null,null,null,1]
[25,null,null,null,null,null,null,null,{"$f":"IFERROR(VLOOKUP($C152,Lager!$A:$B,2,FALSE),\"\")","v":""},null,null,null,null,"-",null,null,null,null,null,null,null,null,null,"-",null,null,null,1]
[26,null,null,null,null,null,null,null,{"$f":"IFERROR(VLOOKUP($C153,Lager!$A:$B,2,FALSE),\"\")","v":""},null,null,null,null,"-",null,null,null,null,null,null,null,null,null,"-",null,null,null,1]
[27,null,null,null,null,null,null,null,{"$f":"IFERROR(VLOOKUP($C154,Lager!$A:$B,2,FALSE),\"\")","v":""},null,null,null,null,"-",null,null,null,null,null,null,null,null,null,"-",null,null,null,1]
[28,null,null,null,null,null,null,null,{"$f":"IFERROR(VLOOKUP($C155,Lager!$A:$B,2,FALSE),\"\")","v":""},null,null,null,null,"-",null,null,null,null,null,null,null,null,null,"-",null,null,null,1]
[29,null,null,null,null,null,null,null,{"$f":"IFERROR(VLOOKUP($C156,Lager!$A:$B,2,FALSE),\"\")","v":""},null,null,null,null,"-",null,null,null,null,null,null,null,null,null,"-",null,null,null,1]
[30,null,null,null,null,null,null,null,{"$f":"IFERROR(VLOOKUP($C157,Lager!$A:$B,2,FALSE),\"\")","v":""},null,null,null,null,"-",null,null,null,null,null,null,null,null,null,"-",null,null,null,1]
[31,null,null,null,null,null,null,null,{"$f":"IFERROR(VLOOKUP($C158,Lager!$A:$B,2,FALSE),\"\")","v":""},null,null,null,null,"-",null,null,null,null,null,null,null,null,null,"-",null,null,null,1]
["*aus Verkäufen, Bauaufträgen oder Unterhalt"]
[]
["Erweiterungen"]
[]
["Bezeichnung",null,null,null,null,null,"Bonus 1 auf",null,null,null,"Boni\n1",null,"Bonus 2 auf",null,null,null,"Boni 2",null,"Unterhalt",null,null,null,null,null,"Kosten in S"]
[null,null,null,null,null,null,null,null,null,null,null,null,null,null,null,null,null,null,"R1 ",null,"A1","R2",null,"A2",null,null,null,null,null,"Verbrauchsrechner"]
[null,null,null,null,null,null,{"$f":"IFERROR(VLOOKUP($A165,Erweiterungen!$C:$M,2,FALSE),\"\")","v":""},null,null,null,{"$f":"IFERROR(VLOOKUP($A165,Erweiterungen!$C:$M,3,FALSE),\"\")","v":""},null,{"$f":"IFERROR(VLOOKUP($A165,Erweiterungen!$C:$M,4,FALSE),\"\")","v":""},null,null,null,{"$f":"IFERROR(VLOOKUP($A165,Erweiterungen!$C:$M,5,FALSE),\"\")","v":""},null,{"$f":"IFERROR(VLOOKUP($A165,Erweiterungen!$C:$M,7,FALSE),\"\")","v":""},null,{"$f":"IFERROR(VLOOKUP($A165,Erweiterungen!$C:$M,8,FALSE),\"\")","v":""},{"$f":"IFERROR(VLOOKUP($A165,Erweiterungen!$C:$M,9,FALSE),\"\")","v":""},null,{"$f":"IFERROR(VLOOKUP($A165,Erweiterungen!$C:$M,10,FALSE),\"\")","v":""},{"$f":"IFERROR(VLOOKUP($A165,Erweiterungen!$C:$M,11,FALSE),\"\")","v":""},null,null,null,null,"Bier",null,null,null,{"$f":"SUMIF($S$165:$T$185,$AD165,$U$165:$U$185)+SUMIF($X$165:$X$185,$AD165,$Y$165:$Z$185)","v":0}]
[null,null,null,null,null,null,{"$f":"IFERROR(VLOOKUP($A166,Erweiterungen!$C:$M,2,FALSE),\"\")","v":""},null,null,null,{"$f":"IFERROR(VLOOKUP($A166,Erweiterungen!$C:$M,3,FALSE),\"\")","v":""},null,{"$f":"IFERROR(VLOOKUP($A166,Erweiterungen!$C:$M,4,FALSE),\"\")","v":""},null,null,null,{"$f":"IFERROR(VLOOKUP($A166,Erweiterungen!$C:$M,5,FALSE),\"\")","v":""},null,{"$f":"IFERROR(VLOOKUP($A166,Erweiterungen!$C:$M,7,FALSE),\"\")","v":""},null,{"$f":"IFERROR(VLOOKUP($A166,Erweiterungen!$C:$M,8,FALSE),\"\")","v":""},{"$f":"IFERROR(VLOOKUP($A166,Erweiterungen!$C:$M,9,FALSE),\"\")","v":""},null,{"$f":"IFERROR(VLOOKUP($A166,Erweiterungen!$C:$M,10,FALSE),\"\")","v":""},{"$f":"IFERROR(VLOOKUP($A166,Erweiterungen!$C:$M,11,FALSE),\"\")","v":""},null,null,null,null,"Brot",null,null,null,{"$f":"SUMIF($S$165:$T$185,$AD166,$U$165:$U$185)+SUMIF($X$165:$X$185,$AD166,$Y$165:$Z$185)","v":0}]
[null,null,null,null,null,null,{"$f":"IFERROR(VLOOKUP($A167,Erweiterungen!$C:$M,2,FALSE),\"\")","v":""},null,null,null,{"$f":"IFERROR(VLOOKUP($A167,Erweiterungen!$C:$M,3,FALSE),\"\")","v":""},null,{"$f":"IFERROR(VLOOKUP($A167,Erweiterungen!$C:$M,4,FALSE),\"\")","v":""},null,null,null,{"$f":"IFERROR(VLOOKUP($A167,Erweiterungen!$C:$M,5,FALSE),\"\")","v":""},null,{"$f":"IFERROR(VLOOKUP($A167,Erweiterungen!$C:$M,7,FALSE),\"\")","v":""},null,{"$f":"IFERROR(VLOOKUP($A167,Erweiterungen!$C:$M,8,FALSE),\"\")","v":""},{"$f":"IFERROR(VLOOKUP($A167,Erweiterungen!$C:$M,9,FALSE),\"\")","v":""},null,{"$f":"IFERROR(VLOOKUP($A167,Erweiterungen!$C:$M,10,FALSE),\"\")","v":""},{"$f":"IFERROR(VLOOKUP($A167,Erweiterungen!$C:$M,11,FALSE),\"\")","v":""},null,null,null,null,"Eisen",null,null,null,0]
[null,null,null,null,null,null,{"$f":"IFERROR(VLOOKUP($A168,Erweiterungen!$C:$M,2,FALSE),\"\")","v":""},null,null,null,{"$f":"IFERROR(VLOOKUP($A168,Erweiterungen!$C:$M,3,FALSE),\"\")","v":""},null,{"$f":"IFERROR(VLOOKUP($A168,Erweiterungen!$C:$M,4,FALSE),\"\")","v":""},null,null,null,{"$f":"IFERROR(VLOOKUP($A168,Erweiterungen!$C:$M,5,FALSE),\"\")","v":""},null,{"$f":"IFERROR(VLOOKUP($A168,Erweiterungen!$C:$M,7,FALSE),\"\")","v":""},null,{"$f":"IFERROR(VLOOKUP($A168,Erweiterungen!$C:$M,8,FALSE),\"\")","v":""},{"$f":"IFERROR(VLOOKUP($A168,Erweiterungen!$C:$M,9,FALSE),\"\")","v":""},null,{"$f":"IFERROR(VLOOKUP($A168,Erweiterungen!$C:$M,10,FALSE),\"\")","v":""},{"$f":"IFERROR(VLOOKUP($A168,Erweiterungen!$C:$M,11,FALSE),\"\")","v":""},null,null,null,null,"Fleisch",null,null,null,0]
[null,null,null,null,null,null,{"$f":"IFERROR(VLOOKUP($A169,Erweiterungen!$C:$M,2,FALSE),\"\")","v":""},null,null,null,{"$f":"IFERROR(VLOOKUP($A169,Erweiterungen!$C:$M,3,FALSE),\"\")","v":""},null,{"$f":"IFERROR(VLOOKUP($A169,Erweiterungen!$C:$M,4,FALSE),\"\")","v":""},null,null,null,{"$f":"IFERROR(VLOOKUP($A169,Erweiterungen!$C:$M,5,FALSE),\"\")","v":""},null,{"$f":"IFERROR(VLOOKUP($A169,Erweiterungen!$C:$M,7,FALSE),\"\")","v":""},null,{"$f":"IFERROR(VLOOKUP($A169,Erweiterungen!$C:$M,8,FALSE),\"\")","v":""},{"$f":"IFERROR(VLOOKUP($A169,Erweiterungen!$C:$M,9,FALSE),\"\")","v":""},null,{"$f":"IFERROR(VLOOKUP($A169,Erweiterungen!$C:$M,10,FALSE),\"\")","v":""},{"$f":"IFERROR(VLOOKUP($A169,Erweiterungen!$C:$M,11,FALSE),\"\")","v":""},null,null,null,null,"Gold",null,null,null,0]
[null,null,null,null,null,null,{"$f":"IFERROR(VLOOKUP($A170,Erweiterungen!$C:$M,2,FALSE),\"\")","v":""},null,null,null,{"$f":"IFERROR(VLOOKUP($A170,Erweiterungen!$C:$M,3,FALSE),\"\")","v":""},null,{"$f":"IFERROR(VLOOKUP($A170,Erweiterungen!$C:$M,4,FALSE),\"\")","v":""},null,null,null,{"$f":"IFERROR(VLOOKUP($A170,Erweiterungen!$C:$M,5,FALSE),\"\")","v":""},null,{"$f":"IFERROR(VLOOKUP($A170,Erweiterungen!$C:$M,7,FALSE),\"\")","v":""},null,{"$f":"IFERROR(VLOOKUP($A170,Erweiterungen!$C:$M,8,FALSE),\"\")","v":""},{"$f":"IFERROR(VLOOKUP($A170,Erweiterungen!$C:$M,9,FALSE),\"\")","v":""},null,{"$f":"IFERROR(VLOOKUP($A170,Erweiterungen!$C:$M,10,FALSE),\"\")","v":""},{"$f":"IFERROR(VLOOKUP($A170,Erweiterungen!$C:$M,11,FALSE),\"\")","v":""},null,null,null,null,"Holz",null,null,null,0]
[null,null,null,null,null,null,{"$f":"IFERROR(VLOOKUP($A171,Erweiterungen!$C:$M,2,FALSE),\"\")","v":""},null,null,null,{"$f":"IFERROR(VLOOKUP($A171,Erweiterungen!$C:$M,3,FALSE),\"\")","v":""},null,{"$f":"IFERROR(VLOOKUP($A171,Erweiterungen!$C:$M,4,FALSE),\"\")","v":""},null,null,null,{"$f":"IFERROR(VLOOKUP($A171,Erweiterungen!$C:$M,5,FALSE),\"\")","v":""},null,{"$f":"IFERROR(VLOOKUP($A171,Erweiterungen!$C:$M,7,FALSE),\"\")","v":""},null,{"$f":"IFERROR(VLOOKUP($A171,Erweiterungen!$C:$M,8,FALSE),\"\")","v":""},{"$f":"IFERROR(VLOOKUP($A171,Erweiterungen!$C:$M,9,FALSE),\"\")","v":""},null,{"$f":"IFERROR(VLOOKUP($A171,Erweiterungen!$C:$M,10,FALSE),\"\")","v":""},{"$f":"IFERROR(VLOOKUP($A171,Erweiterungen!$C:$M,11,FALSE),\"\")","v":""},null,null,null,null,"Kleidung",null,null,null,0]
[null,null,null,null,null,null,{"$f":"IFERROR(VLOOKUP($A172,Erweiterungen!$C:$M,2,FALSE),\"\")","v":""},null,null,null,{"$f":"IFERROR(VLOOKUP($A172,Erweiterungen!$C:$M,3,FALSE),\"\")","v":""},null,{"$f":"IFERROR(VLOOKUP($A172,Erweiterungen!$C:$M,4,FALSE),\"\")","v":""},null,null,null,{"$f":"IFERROR(VLOOKUP($A172,Erweiterungen!$C:$M,5,FALSE),\"\")","v":""},null,{"$f":"IFERROR(VLOOKUP($A172,Erweiterungen!$C:$M,7,FALSE),\"\")","v":""},null,{"$f":"IFERROR(VLOOKUP($A172,Erweiterungen!$C:$M,8,FALSE),\"\")","v":""},{"$f":"IFERROR(VLOOKUP($A172,Erweiterungen!$C:$M,9,FALSE),\"\")","v":""},null,{"$f":"IFERROR(VLOOKUP($A172,Erweiterungen!$C:$M,10,FALSE),\"\")","v":""},{"$f":"IFERROR(VLOOKUP($A172,Erweiterungen!$C:$M,11,FALSE),\"\")","v":""},null,null,null,null,"Kohle",null,null,null,0]
[null,null,null,null,null,null,{"$f":"IFERROR(VLOOKUP($A173,Erweiterungen!$C:$M,2,FALSE),\"\")","v":""},null,null,null,{"$f":"IFERROR(VLOOKUP($A173,Erweiterungen!$C:$M,3,FALSE),\"\")","v":""},null,{"$f":"IFERROR(VLOOKUP($A173,Erweiterungen!$C:$M,4,FALSE),\"\")","v":""},null,null,null,{"$f":"IFERROR(VLOOKUP($A173,Erweiterungen!$C:$M,5,FALSE),\"\")","v":""},null,{"$f":"IFERROR(VLOOKUP($A173,Erweiterungen!$C:$M,7,FALSE),\"\")","v":""},null,{"$f":"IFERROR(VLOOKUP($A173,Erweiterungen!$C:$M,8,FALSE),\"\")","v":""},{"$f":"IFERROR(VLOOKUP($A173,Erweiterungen!$C:$M,9,FALSE),\"\")","v":""},null,{"$f":"IFERROR(VLOOKUP($A173,Erweiterungen!$C:$M,10,FALSE),\"\")","v":""},{"$f":"IFERROR(VLOOKUP($A173,Erweiterungen!$C:$M,11,FALSE),\"\")","v":""},null,null,null,null,"Korn",null,null,null,0]
[null,null,null,null,null,null,{"$f":"IFERROR(VLOOKUP($A174,Erweiterungen!$C:$M,2,FALSE),\"\")","v":""},null,null,null,{"$f":"IFERROR(VLOOKUP($A174,Erweiterungen!$C:$M,3,FALSE),\"\")","v":""},null,{"$f":"IFERROR(VLOOKUP($A174,Erweiterungen!$C:$M,4,FALSE),\"\")","v":""},null,null,null,{"$f":"IFERROR(VLOOKUP($A174,Erweiterungen!$C:$M,5,FALSE),\"\")","v":""},null,{"$f":"IFERROR(VLOOKUP($A174,Erweiterungen!$C:$M,7,FALSE),\"\")","v":""},null,{"$f":"IFERROR(VLOOKUP($A174,Erweiterungen!$C:$M,8,FALSE),\"\")","v":""},{"$f":"IFERROR(VLOOKUP($A174,Erweiterungen!$C:$M,9,FALSE),\"\")","v":""},null,{"$f":"IFERROR(VLOOKUP($A174,Erweiterungen!$C:$M,10,FALSE),\"\")","v":""},{"$f":"IFERROR(VLOOKUP($A174,Erweiterungen!$C:$M,11,FALSE),\"\")","v":""},null,null,null,null,"Kräuter",null,null,null,0]
[null,null,null,null,null,null,{"$f":"IFERROR(VLOOKUP($A175,Erweiterungen!$C:$M,2,FALSE),\"\")","v":""},null,null,null,{"$f":"IFERROR(VLOOKUP($A175,Erweiterungen!$C:$M,3,FALSE),\"\")","v":""},null,{"$f":"IFERROR(VLOOKUP($A175,Erweiterungen!$C:$M,4,FALSE),\"\")","v":""},null,null,null,{"$f":"IFERROR(VLOOKUP($A175,Erweiterungen!$C:$M,5,FALSE),\"\")","v":""},null,{"$f":"IFERROR(VLOOKUP($A175,Erweiterungen!$C:$M,7,FALSE),\"\")","v":""},null,{"$f":"IFERROR(VLOOKUP($A175,Erweiterungen!$C:$M,8,FALSE),\"\")","v":""},{"$f":"IFERROR(VLOOKUP($A175,Erweiterungen!$C:$M,9,FALSE),\"\")","v":""},null,{"$f":"IFERROR(VLOOKUP($A175,Erweiterungen!$C:$M,10,FALSE),\"\")","v":""},{"$f":"IFERROR(VLOOKUP($A175,Erweiterungen!$C:$M,11,FALSE),\"\")","v":""},null,null,null,null,"Leder",null,null,null,0]
[null,null,null,null,null,null,{"$f":"IFERROR(VLOOKUP($A176,Erweiterungen!$C:$M,2,FALSE),\"\")","v":""},null,null,null,{"$f":"IFERROR(VLOOKUP($A176,Erweiterungen!$C:$M,3,FALSE),\"\")","v":""},null,{"$f":"IFERROR(VLOOKUP($A176,Erweiterungen!$C:$M,4,FALSE),\"\")","v":""},null,null,null,{"$f":"IFERROR(VLOOKUP($A176,Erweiterungen!$C:$M,5,FALSE),\"\")","v":""},null,{"$f":"IFERROR(VLOOKUP($A176,Erweiterungen!$C:$M,7,FALSE),\"\")","v":""},null,{"$f":"IFERROR(VLOOKUP($A176,Erweiterungen!$C:$M,8,FALSE),\"\")","v":""},{"$f":"IFERROR(VLOOKUP($A176,Erweiterungen!$C:$M,9,FALSE),\"\")","v":""},null,{"$f":"IFERROR(VLOOKUP($A176,Erweiterungen!$C:$M,10,FALSE),\"\")","v":""},{"$f":"IFERROR(VLOOKUP($A176,Erweiterungen!$C:$M,11,FALSE),\"\")","v":""},null,null,null,null,"Mixtur",null,null,null,0]
[null,null,null,null,null,null,{"$f":"IFERROR(VLOOKUP($A177,Erweiterungen!$C:$M,2,FALSE),\"\")","v":""},null,null,null,{"$f":"IFERROR(VLOOKUP($A177,Erweiterungen!$C:$M,3,FALSE),\"\")","v":""},null,{"$f":"IFERROR(VLOOKUP($A177,Erweiterungen!$C:$M,4,FALSE),\"\")","v":""},null,null,null,{"$f":"IFERROR(VLOOKUP($A177,Erweiterungen!$C:$M,5,FALSE),\"\")","v":""},null,{"$f":"IFERROR(VLOOKUP($A177,Erweiterungen!$C:$M,7,FALSE),\"\")","v":""},null,{"$f":"IFERROR(VLOOKUP($A177,Erweiterungen!$C:$M,8,FALSE),\"\")","v":""},{"$f":"IFERROR(VLOOKUP($A177,Erweiterungen!$C:$M,9,FALSE),\"\")","v":""},null,{"$f":"IFERROR(VLOOKUP($A177,Erweiterungen!$C:$M,10,FALSE),\"\")","v":""},{"$f":"IFERROR(VLOOKUP($A177,Erweiterungen!$C:$M,11,FALSE),\"\")","v":""},null,null,null,null,"Papier",null,null,null,0]
[null,null,null,null,null,null,{"$f":"IFERROR(VLOOKUP($A178,Erweiterungen!$C:$M,2,FALSE),\"\")","v":""},null,null,null,{"$f":"IFERROR(VLOOKUP($A178,Erweiterungen!$C:$M,3,FALSE),\"\")","v":""},null,{"$f":"IFERROR(VLOOKUP($A178,Erweiterungen!$C:$M,4,FALSE),\"\")","v":""},null,null,null,{"$f":"IFERROR(VLOOKUP($A178,Erweiterungen!$C:$M,5,FALSE),\"\")","v":""},null,{"$f":"IFERROR(VLOOKUP($A178,Erweiterungen!$C:$M,7,FALSE),\"\")","v":""},null,{"$f":"IFERROR(VLOOKUP($A178,Erweiterungen!$C:$M,8,FALSE),\"\")","v":""},{"$f":"IFERROR(VLOOKUP($A178,Erweiterungen!$C:$M,9,FALSE),\"\")","v":""},null,{"$f":"IFERROR(VLOOKUP($A178,Erweiterungen!$C:$M,10,FALSE),\"\")","v":""},{"$f":"IFERROR(VLOOKUP($A178,Erweiterungen!$C:$M,11,FALSE),\"\")","v":""},null,null,null,null,"reines Element",null,null,null,0]
[null,null,null,null,null,null,{"$f":"IFERROR(VLOOKUP($A179,Erweiterungen!$C:$M,2,FALSE),\"\")","v":""},null,null,null,{"$f":"IFERROR(VLOOKUP($A179,Erweiterungen!$C:$M,3,FALSE),\"\")","v":""},null,{"$f":"IFERROR(VLOOKUP($A179,Erweiterungen!$C:$M,4,FALSE),\"\")","v":""},null,null,null,{"$f":"IFERROR(VLOOKUP($A179,Erweiterungen!$C:$M,5,FALSE),\"\")","v":""},null,{"$f":"IFERROR(VLOOKUP($A179,Erweiterungen!$C:$M,7,FALSE),\"\")","v":""},null,{"$f":"IFERROR(VLOOKUP($A179,Erweiterungen!$C:$M,8,FALSE),\"\")","v":""},{"$f":"IFERROR(VLOOKUP($A179,Erweiterungen!$C:$M,9,FALSE),\"\")","v":""},null,{"$f":"IFERROR(VLOOKUP($A179,Erweiterungen!$C:$M,10,FALSE),\"\")","v":""},{"$f":"IFERROR(VLOOKUP($A179,Erweiterungen!$C:$M,11,FALSE),\"\")","v":""},null,null,null,null,"Silber",null,null,null,0]
[null,null,null,null,null,null,{"$f":"IFERROR(VLOOKUP($A180,Erweiterungen!$C:$M,2,FALSE),\"\")","v":""},null,null,null,{"$f":"IFERROR(VLOOKUP($A180,Erweiterungen!$C:$M,3,FALSE),\"\")","v":""},null,{"$f":"IFERROR(VLOOKUP($A180,Erweiterungen!$C:$M,4,FALSE),\"\")","v":""},null,null,null,{"$f":"IFERROR(VLOOKUP($A180,Erweiterungen!$C:$M,5,FALSE),\"\")","v":""},null,{"$f":"IFERROR(VLOOKUP($A180,Erweiterungen!$C:$M,7,FALSE),\"\")","v":""},null,{"$f":"IFERROR(VLOOKUP($A180,Erweiterungen!$C:$M,8,FALSE),\"\")","v":""},{"$f":"IFERROR(VLOOKUP($A180,Erweiterungen!$C:$M,9,FALSE),\"\")","v":""},null,{"$f":"IFERROR(VLOOKUP($A180,Erweiterungen!$C:$M,10,FALSE),\"\")","v":""},{"$f":"IFERROR(VLOOKUP($A180,Erweiterungen!$C:$M,11,FALSE),\"\")","v":""},null,null,null,null,"Stein",null,null,null,0]
[null,null,null,null,null,null,{"$f":"IFERROR(VLOOKUP($A181,Erweiterungen!$C:$M,2,FALSE),\"\")","v":""},null,null,null,{"$f":"IFERROR(VLOOKUP($A181,Erweiterungen!$C:$M,3,FALSE),\"\")","v":""},null,{"$f":"IFERROR(VLOOKUP($A181,Erweiterungen!$C:$M,4,FALSE),\"\")","v":""},null,null,null,{"$f":"IFERROR(VLOOKUP($A181,Erweiterungen!$C:$M,5,FALSE),\"\")","v":""},null,{"$f":"IFERROR(VLOOKUP($A181,Erweiterungen!$C:$M,7,FALSE),\"\")","v":""},null,{"$f":"IFERROR(VLOOKUP($A181,Erweiterungen!$C:$M,8,FALSE),\"\")","v":""},{"$f":"IFERROR(VLOOKUP($A181,Erweiterungen!$C:$M,9,FALSE),\"\")","v":""},null,{"$f":"IFERROR(VLOOKUP($A181,Erweiterungen!$C:$M,10,FALSE),\"\")","v":""},{"$f":"IFERROR(VLOOKUP($A181,Erweiterungen!$C:$M,11,FALSE),\"\")","v":""},null,null,null,null,"Wein",null,null,null,0]
[null,null,null,null,null,null,{"$f":"IFERROR(VLOOKUP($A182,Erweiterungen!$C:$M,2,FALSE),\"\")","v":""},null,null,null,{"$f":"IFERROR(VLOOKUP($A182,Erweiterungen!$C:$M,3,FALSE),\"\")","v":""},null,{"$f":"IFERROR(VLOOKUP($A182,Erweiterungen!$C:$M,4,FALSE),\"\")","v":""},null,null,null,{"$f":"IFERROR(VLOOKUP($A182,Erweiterungen!$C:$M,5,FALSE),\"\")","v":""},null,{"$f":"IFERROR(VLOOKUP($A182,Erweiterungen!$C:$M,7,FALSE),\"\")","v":""},null,{"$f":"IFERROR(VLOOKUP($A182,Erweiterungen!$C:$M,8,FALSE),\"\")","v":""},{"$f":"IFERROR(VLOOKUP($A182,Erweiterungen!$C:$M,9,FALSE),\"\")","v":""},null,{"$f":"IFERROR(VLOOKUP($A182,Erweiterungen!$C:$M,10,FALSE),\"\")","v":""},{"$f":"IFERROR(VLOOKUP($A182,Erweiterungen!$C:$M,11,FALSE),\"\")","v":""},null,null,null,null,"Werkzeug",null,null,null,0]
[null,null,null,null,null,null,{"$f":"IFERROR(VLOOKUP($A183,Erweiterungen!$C:$M,2,FALSE),\"\")","v":""},null,null,null,{"$f":"IFERROR(VLOOKUP($A183,Erweiterungen!$C:$M,3,FALSE),\"\")","v":""},null,{"$f":"IFERROR(VLOOKUP($A183,Erweiterungen!$C:$M,4,FALSE),\"\")","v":""},null,null,null,{"$f":"IFERROR(VLOOKUP($A183,Erweiterungen!$C:$M,5,FALSE),\"\")","v":""},null,{"$f":"IFERROR(VLOOKUP($A183,Erweiterungen!$C:$M,7,FALSE),\"\")","v":""},null,{"$f":"IFERROR(VLOOKUP($A183,Erweiterungen!$C:$M,8,FALSE),\"\")","v":""},{"$f":"IFERROR(VLOOKUP($A183,Erweiterungen!$C:$M,9,FALSE),\"\")","v":""},null,{"$f":"IFERROR(VLOOKUP($A183,Erweiterungen!$C:$M,10,FALSE),\"\")","v":""},{"$f":"IFERROR(VLOOKUP($A183,Erweiterungen!$C:$M,11,FALSE),\"\")","v":""},null,null,null,null,"Wolle",null,null,null,0]
[null,null,null,null,null,null,{"$f":"IFERROR(VLOOKUP($A184,Erweiterungen!$C:$M,2,FALSE),\"\")","v":""},null,null,null,{"$f":"IFERROR(VLOOKUP($A184,Erweiterungen!$C:$M,3,FALSE),\"\")","v":""},null,{"$f":"IFERROR(VLOOKUP($A184,Erweiterungen!$C:$M,4,FALSE),\"\")","v":""},null,null,null,{"$f":"IFERROR(VLOOKUP($A184,Erweiterungen!$C:$M,5,FALSE),\"\")","v":""},null,{"$f":"IFERROR(VLOOKUP($A184,Erweiterungen!$C:$M,7,FALSE),\"\")","v":""},null,{"$f":"IFERROR(VLOOKUP($A184,Erweiterungen!$C:$M,8,FALSE),\"\")","v":""},{"$f":"IFERROR(VLOOKUP($A184,Erweiterungen!$C:$M,9,FALSE),\"\")","v":""},null,{"$f":"IFERROR(VLOOKUP($A184,Erweiterungen!$C:$M,10,FALSE),\"\")","v":""},{"$f":"IFERROR(VLOOKUP($A184,Erweiterungen!$C:$M,11,FALSE),\"\")","v":""},null,null,null,null,"Ziegel",null,null,null,0]
[null,null,null,null,null,null,{"$f":"IFERROR(VLOOKUP($A185,Erweiterungen!$C:$M,2,FALSE),\"\")","v":""},null,null,null,{"$f":"IFERROR(VLOOKUP($A185,Erweiterungen!$C:$M,3,FALSE),\"\")","v":""},null,{"$f":"IFERROR(VLOOKUP($A185,Erweiterungen!$C:$M,4,FALSE),\"\")","v":""},null,null,null,{"$f":"IFERROR(VLOOKUP($A185,Erweiterungen!$C:$M,5,FALSE),\"\")","v":""},null,{"$f":"IFERROR(VLOOKUP($A185,Erweiterungen!$C:$M,7,FALSE),\"\")","v":""},null,{"$f":"IFERROR(VLOOKUP($A185,Erweiterungen!$C:$M,8,FALSE),\"\")","v":""},{"$f":"IFERROR(VLOOKUP($A185,Erweiterungen!$C:$M,9,FALSE),\"\")","v":""},null,{"$f":"IFERROR(VLOOKUP($A185,Erweiterungen!$C:$M,10,FALSE),\"\")","v":""},{"$f":"IFERROR(VLOOKUP($A185,Erweiterungen!$C:$M,11,FALSE),\"\")","v":""}]
[null,null,null,null,null,null,null,null,null,null,null,null,null,null,null,null,null,null,null,null,null,null,null,null,{"$f":"SUM(Y165:Z185)","v":0}]
[]
["Eure Handelstransaktionen"]
[]
["Nr.","Ihr kauft / verkauft",null,null,null,null,null,"Anzahl",null,null,"an",null,null,null,null,null,"gegen",null,null,null,null,null,null,"Anzahl"]
[1]
[2]
[3]
[4]
[5]
[6]
[7]
[8]
[9]
[10]
[11]
[12]
[13]
[14]
[15]
[16]
[17]
[18]
[19]
[20]

{"sheet":"Baukostenübersicht","index":1,"n_rows":79,"n_cols":15,"rows_kept":79,"cut":false,"hidden":true,"merged":[]}
["Gruppe","Objekt","Voraussetzung","produziert Rohstoff",null,null,null,"Geld","Rohstoff / Handelsware","Anzahl","Rohstoff / Handelsware","Anzahl","Rohstoff / Handelsware","Anzahl","Bauzeit in Runden"]
["Rohstoffquelle","Steinbruch","Rohstoffbauplatz","Steine",null,null,null,100,"Holz",50,"Werkzeug",1]
["Rohstoffquelle","Eisenminen","Rohstoffbauplatz","Eisen",null,null,null,200,"Holz",50,"Werkzeug",1]
["Rohstoffquelle","Silberminen","Rohstoffbauplatz","Silber",null,null,null,300,"Holz",50,"Werkzeug",1]
["Rohstoffquelle","Goldminen","Rohstoffbauplatz","Gold",null,null,null,400,"Holz",50,"Werkzeug",1]
["Rohstoffquelle","Edelsteinminen","Rohstoffbauplatz","Edelsteine",null,null,null,500,"Holz",50,"Werkzeug",1]
["Rohstoffquelle","Elementarquelle Erde","Rohstoffbauplatz","reines Element",null,null,null,1000,"Werkzeug",10]
["Rohstoffquelle","Köhlerei","Rohstoffbauplatz","Kohle",null,null,null,50,"Holz",20]
["Rohstoffquelle","Forstwirtschaft","Rohstoffbauplatz","Holz",null,null,null,100,"Werkzeug",5]
["Rohstoffquelle","Kräutersammler","Rohstoffbauplatz","Kräuter",null,null,null,100,"Werkzeug",1]
["Rohstoffquelle","Edelholzhain","Rohstoffbauplatz","Edelholz",null,null,null,150,"Werkzeug",10]
["Rohstoffquelle","Jagdgebiet","Rohstoffbauplatz","Leder",null,null,null,100,"Bögen",1]
["Rohstoffquelle","Elementarquelle Holz","Rohstoffbauplatz","reines Element",null,null,null,1000,"Werkzeug",10]
["Rohstoffquelle","Lehmgrube","Rohstoffbauplatz","Ziegel",null,null,null,100,"Holz",50]
["Rohstoffquelle","Schafszucht","Rohstoffbauplatz","Wolle",null,null,null,150,"Holz",30]
["Rohstoffquelle","Gehöft","Rohstoffbauplatz","Korn",null,null,null,200,"Holz",20,"Ziegel",50]
["Rohstoffquelle","hochwertige Nahrungsproduktion","Rohstoffbauplatz","Hopfen",null,null,null,300,"Ziegel",100]
["Rohstoffquelle","edle Wildtiere","Rohstoffbauplatz","Felle",null,null,null,400,"Holz",50]
["Rohstoffquelle","Weinanbaugebiet","Rohstoffbauplatz","Wein",null,null,null,500,"Holz",30,"Ziegel",50]
["Rohstoffquelle","Rinderfarm","Rohstoffbauplatz","Fleisch",null,null,null,600,"Holz",80,"Ziegel",20]
["Rohstoffquelle","Fischerei","Rohstoffbauplatz","Fisch",null,null,null,100,"Holz",50,"Ziegel",20]
["Rohstoffquelle","Floßwirtschaft","Rohstoffbauplatz","Holz",null,null,null,150,"Holz",30]
["Rohstoffquelle","Anlegestelle","Rohstoffbauplatz","Werkzeuge",null,null,null,300,"Holz",50,"Ziegel",50]
["Rohstoffquelle","Zollstelle","Rohstoffbauplatz + Genehmigung von Throal","Geld",null,null,null,500,"Holz",30,"Stein",100]
["Rohstoffquelle","Handelsposten","Rohstoffbauplatz","Werkzeuge",null,null,null,800,"Holz",50,"Ziegel",100]
["Rohstoffquelle","Elementarquelle Wasser ","Rohstoffbauplatz","reines Element",null,null,null,1000,"Werkzeug",10]
["Gruppe","Objekt","Voraussetzung","produziert Handelswaren",null,null,null,"Geld","Rohstoff / Handelsware","Anzahl","Rohstoff / Handelsware","Anzahl","Rohstoff / Handelsware","Anzahl","Bauzeit in Runden"]
["Produktionsstätten Handelswaren","Alchemistenlabor","nicht auf Dorfbauplatz","Tinkturen",null,null,null,1000,"Ziegel",300]
["Produktionsstätten Handelswaren","Bäckerei","Dorfbauplatz","Brot",null,null,null,500,"Ziegel",200]
["Produktionsstätten Handelswaren","Bogner",null,"Bögen",null,null,null,300,"Holz",100,"Werkzeug",10]
["Produktionsstätten Handelswaren","Brauerei","Dorfbauplatz","Bier",null,null,null,700,"Ziegel",100,"Holz",100]
["Produktionsstätten Handelswaren","Flussschiffwerf","muss am Wasser gebaut werden","Flussschiff",null,null,null,1500,"Holz",300,"Ziegel",100]
["Produktionsstätten Handelswaren","Gerber",null,"Lederrüstung",null,null,null,400,"Ziegel",100]
["Produktionsstätten Handelswaren","Goldschmied","Dorfbauplatz","Schmuck",null,null,null,700,"Ziegel",100,"Stein",300]
["Produktionsstätten Handelswaren","Mühle",null,"Mehl",null,null,null,800,"Holz",300,"Ziegel",100,"Werkzeug",5]
["Produktionsstätten Handelswaren","Plättner","Dorfbauplatz","Eisenrüstung",null,null,null,800,"Stein",100,"Holz",100]
["Produktionsstätten Handelswaren","Schmiede","Dorfbauplatz","Werkzeug",null,null,null,700,"Ziegel",200,"Stein",100]
["Produktionsstätten Handelswaren","Stallungen",null,"Reittiere",null,null,null,300,"Holz",300,"Stein",50]
["Produktionsstätten Handelswaren","Waffenschmiede","Dorfbauplatz","Klingenwaffen",null,null,null,900,"Ziegel",200,"Stein",200]
["Produktionsstätten Handelswaren","Weberei","Dorfbauplatz","Kleidung",null,null,null,600,"Holz",200,"Ziegel",100]
["Produktionsstätten Handelswaren","Papiermacher","muss am Wasser gebaut werden","Papier",null,null,null,1000,"Holz",300,"Stein",100]
["Gruppe","Steinbruch","Voraussetzung","Bonus 1 auf","Bonus 1","Bonus 2 auf","Bonus 2","Geld","Rohstoff / Handelsware","Anzahl","Rohstoff / Handelsware","Anzahl","Rohstoff / Handelsware","Anzahl","Bauzeit in Runden"]
["Erweiterung","3-Felder-Wirtschaft","Gehöft","Korn",2,"","",500,"Holz",20,"Werkzeug",1]
["Erweiterung","Badehaus","Dorfbauplatz","Stimmung",2,"","",1500,"Edelholz",50,"Ziegel",400]
["Erweiterung","Bankhaus","Dorfbauplatz","Geld",50,"","",2000,"Stein",500,"Edelholz",200]
["Erweiterung","Bibliothek","Dorfbauplatz","Stimmung",3,"","",2500,"Stein",400,"Edelholz",300]
["Erweiterung","Brennofen","Lehmgrube","Ziegel",2,"","",200,"Ziegel",100]
["Erweiterung","Eisenhütte","Eisenmine","Eisen",2,"","",200,"Ziegel",100]
["Erweiterung","Elementarist","Elementares Vorkommen","reines Element",2,"","",500]
["Erweiterung","Festung","2 freie Bauplätze, Kaserne","ermöglicht Soldaten",100,"Wehrkraft",5,5000,"Stein",5000,"Holz",500]
["Erweiterung","Förster","Forstwirtschaft","Edelhölzer",2,"","",100,"Werkzeug",10]
["Erweiterung","Galgen",null,"Stimmung",1,"","",100,"Holz",10]
["Erweiterung","Gewächshaus","Kräutersammler","Käuter",2,"","",800,"Stein",50,"Holz",150]
["Erweiterung","Goldschmelze","Goldmine","Gold",2,"","",400,"Ziegel",200,"Stein",100]
["Erweiterung","großer Meiler","Köhlerei","Kohle",2,"","",100,"Ziegel",50]
["Erweiterung","großes Fest",null,"Stimmung",3,"","",500,"Bier",100,"Wein",100,"Fleisch",100]
["Erweiterung","Handelskontor","Handelsposten","Geld",30,"","",1000,"Ziegel",300,"Holz",200]
["Erweiterung","Heiler",null,"Stimmung",1,"Volk",0.02,200]
["Erweiterung","Holzgerüst","Steinbruch","Steine",2,"","",100,"Holz",50]
["Erweiterung","Jagdhütte",null,"Leder",2,"","",200,"Holz",100]
["Erweiterung","Kaserne",null,"ermöglicht Soldaten",30,"Wehrkraft",3,1000,"Ziegel",300,"Holz",100]
["Erweiterung","Kelterei","Weinanbaugebiet","Stimmung",1,"","",500,"Stein",200]
["Erweiterung","Lagererweiterung",null,"zusätzlicher Lagerplatz","","","",100,"Holz",50,"Ziegel",50]
["Erweiterung","Magierturm",null,"Verseuchung",-1,"Wehrkraft",3,1500,"Stein",600,"reines Element",5]
["Erweiterung","Mauer (Stein)",null,"Dorfbauplatz",2,"","",200,"Stein",100]
["Erweiterung","Münze","Bankhaus, Dorfbauplatz","Geld",100,"","",3000,"Ziegel",700,"Stein",700]
["Erweiterung","Palisade",null,"Dorfbauplatz",1,"Wehrkraft",1,100,"Holz",100]
["Erweiterung","Pilgerhaus","Tempel einer Passion","Volk",0.01,"","",500,"Ziegel",300,"Holz",100]
["Erweiterung","Prospektor",null,"schaltet Rohstoffquelle frei","","","",150]
["Erweiterung","Sägewerk","Forstwirtschaft","Holz",2,"","",200,"Stein",50,"Holz",100]
["Erweiterung","Schäfer","Schafszucht","Wolle",2,"","",50,"Werkzeug",5]
["Erweiterung","Silberschmelze","Silbermine","Silber",2,"","",300,"Ziegel",200]
["Erweiterung","Straße",null,"Geld",1,"Wehrkraft",1,50,"Stein",5]
["Erweiterung","Taverne","Dorfbauplatz","Stimmung",2,"Volk",0.01,600,"Stein",100,"Holz",300]
["Erweiterung","Theater","Dorfbauplatz","Stimmung",5,"","",1200,"Ziegel",500,"Edelholz",100,"Werkzeug",10]
["Erweiterung","Troubadur",null,"Stimmung",1,"Volk",0.02,300]
["Erweiterung","Wachturm",null,"ermöglicht Soldaten",10,"Wehrkraft",2,500,"Stein",200,"Holz",100]
["Erweiterung","Waschanlage","Edelsteinmine","Edelsteine",2,"","",100,"Holz",100]
["Erweiterung","Werkstatt","Dorfbauplatz","Werkzeug",2,"","",300,"Stein",100,"Holz",100]

{"sheet":"Parameter","index":2,"n_rows":43,"n_cols":16,"rows_kept":43,"cut":false,"hidden":true,"merged":[]}
[]
[null,null,null,"Landschaft",null,"Wirtschaft",null,"Landmarke",null,"Bezeichnung",null,"Verseuchungsgrad",null,"Einstellung des Volkes"]
["Lehensnummer","Name","Lehensherr","Schlüssel","Wert","Schlüssel","Wert","Schlüssel","Wert",null,null,"Schlüssel","Wert","Schlüssel","Wert"]
[1,null,null,4,"Flussgebiet",2,"Floßwirtschaft",1,"altes Kaer (geöffnet)","Kaer Yunot",null,5,"Kultisten",3,"wirtschaftlicher Gegenspieler",{"$f":"N4*10+5","v":35}]
[2,null,null,1,"Gebirge",2,"Eisenminen",2,"alter Tempel einer Passion (normal)","Tempel Mynbrujes",null,2,"Orkbrenner vorhanden",4,"neutral, abwartend",{"$f":"N5*10+5","v":45}]
[3,null,null,4,"Flussgebiet",6,"Vorkommen elementares Wasser",3,"Hügelgräber",null,null,7,"verfluchtes Land",1,"feindselig",15]
[4,"Axtland","Sir Terp Entin",4,"Flussgebiet",5,"Handelsposten",5,"altes Kaer (ungeöffnet)","Kaer Epolam",null,6,"befleckter Astralraum",4,"neutral, abwartend",45]
[5,null,null,4,"Flussgebiet",3,"Anlegestelle",4,"antike Ruinen","Ruinen Orsyms",null,4,"geheimer Theranerposten",6,"loyal bis in den Tod",65]
[6,null,null,4,"Flussgebiet",4,"Zollstelle",5,"altes Kaer (ungeöffnet)","Drache Ißfyr",null,2,"Orkbrenner vorhanden",5,"freundlich, fleißig",55]
[7,"Roddenprärie","Sir Rod Boy",4,"Flussgebiet",2,"Floßwirtschaft",2,"alter Tempel einer Passion (normal)","Tempel Garlens",null,1,"rein",2,"intrigant",25]
[8,null,null,1,"Gebirge",4,"Goldminen",7,"Luftschiffwrack","Wrack der Windbrecher ",null,6,"befleckter Astralraum",5,"freundlich, fleißig",55]
[9,"Wild-Wacht","Sir Gragog Ungram",1,"Gebirge",3,"Silberminen",4,"antike Ruinen","Ruinen Dicebs",null,3,"Luftpiraten vorhanden",6,"loyal bis in den Tod",65]
[10,"Spreginn","Sir Odie Ahnenschein",1,"Gebirge",6,"Vorkommen elementarer Erde",1,"altes Kaer (geöffnet)","Kaer Dokad",null,2,"Orkbrenner vorhanden",2,"intrigant",25]
[11,"Conmagie","Lady Frygia",2,"Wald",6,"magische Pflanzen / elementares Holz",10,"alter Friedhof","Hand des Verderbens",null,5,"Kultisten",1,"feindselig",15]
[12,"Asanktus Igrum","Sir Jaandril",2,"Wald",2,"Laubwald / Bauholz",8,"altes Elementarheiligtum","Heiligtum des Feuers",null,8,"Dämonenverseucht",6,"loyal bis in den Tod",65]
[13,null,null,1,"Gebirge",6,"Vorkommen elementarer Erde",11,"nichts","Handelsposten Weremünd",null,6,"befleckter Astralraum",5,"freundlich, fleißig",55]
[14,"Voldises","Sir Jaxun",1,"Gebirge",5,"Edelsteinminen",5,"altes Kaer (ungeöffnet)","Kaer Umuhuri",null,1,"rein",6,"loyal bis in den Tod",65]
[15,null,null,1,"Gebirge",3,"Silberminen",8,"altes Elementarheiligtum","Heiligtum der Luft",null,3,"Luftpiraten vorhanden",3,"wirtschaftlicher Gegenspieler",35]
[16,null,null,1,"Gebirge",5,"Edelsteinminen",1,"altes Kaer (geöffnet)",null,null,6,"befleckter Astralraum",4,"neutral, abwartend",45]
[17,null,null,1,"Gebirge",1,"Steinbruch",9,"altes Schlachtfeld",null,null,1,"rein",5,"freundlich, fleißig",55]
[18,"Grünfort","Sir Viasan",1,"Gebirge",2,"Eisenminen",7,"Luftschiffwrack","Wrack der Eisenbeisser",null,6,"befleckter Astralraum",4,"neutral, abwartend",45]
[19,null,null,2,"Wald",1,"Nadelwälder / Köhlerei",8,"altes Elementarheiligtum","Lebensfelsen von Ock",null,5,"Kultisten",6,"loyal bis in den Tod",65]
[20,null,null,2,"Wald",3,"alter Mischwald / Pilzzucht",11,"nichts",null,null,7,"verfluchtes Land",2,"intrigant",25]
[21,null,null,2,"Wald",4,"Edelhölzer / hochw. Bauholz",5,"altes Kaer (ungeöffnet)","Stamm der Nierenschlitzer, Kaer Enahe",null,2,"Orkbrenner vorhanden",4,"neutral, abwartend",45]
[22,null,null,2,"Wald",6,"magische Pflanzen / elementares Holz",9,"altes Schlachtfeld",null,null,8,"Dämonenverseucht",4,"neutral, abwartend",45]
[23,null,null,1,"Gebirge",6,"Vorkommen elementarer Erde",11,"nichts",null,null,8,"Dämonenverseucht",2,"intrigant",25]
[24,null,null,1,"Gebirge",3,"Silberminen",3,"Hügelgräber","Gräber von Clywit",null,7,"verfluchtes Land",2,"intrigant",25]
[25,null,null,1,"Gebirge",5,"Edelsteinminen",1,"altes Kaer (geöffnet)","Kaer Katlak",null,3,"Luftpiraten vorhanden",3,"wirtschaftlicher Gegenspieler",35]
[26,null,null,2,"Wald",3,"alter Mischwald / Pilzzucht",4,"antike Ruinen","Dorf Slipliss",null,4,"geheimer Theranerposten",1,"feindselig",15]
[27,null,null,2,"Wald",1,"Nadelwälder / Köhlerei",1,"altes Kaer (geöffnet)","Kaer Bratok",null,6,"befleckter Astralraum",1,"feindselig",15]
[28,"Larrenvein","Lady Valeriah",2,"Wald",3,"alter Mischwald / Pilzzucht",2,"alter Tempel einer Passion (normal)","Tempel Jasprees",null,3,"Luftpiraten vorhanden",5,"freundlich, fleißig",55]
[29,null,null,1,"Gebirge",1,"Steinbruch",10,"alter Friedhof",null,null,8,"Dämonenverseucht",1,"feindselig",15]
[30,"Wolfshöhle","Sir Brom Bimsstein",1,"Gebirge",1,"Steinbruch",3,"Hügelgräber",null,null,1,"rein",2,"intrigant",25]
[31,null,null,1,"Gebirge",5,"Edelsteinminen",4,"antike Ruinen","Kult des Großen Jägers, Ruinen Marbaks",null,5,"Kultisten",3,"wirtschaftlicher Gegenspieler",35]
[32,null,null,1,"Gebirge",6,"Vorkommen elementarer Erde",2,"alter Tempel einer Passion (normal)",null,null,6,"befleckter Astralraum",4,"neutral, abwartend",45]
[33,null,null,2,"Wald",3,"alter Mischwald / Pilzzucht",11,"nichts",null,null,6,"befleckter Astralraum",6,"loyal bis in den Tod",65]
[34,null,null,2,"Wald",1,"Nadelwälder / Köhlerei",6,"Magierturm","Geisterbeschwörer Norm",null,1,"rein",1,"feindselig",15]
[35,null,null,2,"Wald",4,"Edelhölzer / hochw. Bauholz",4,"antike Ruinen","Ruine der alte Zollfeste",null,1,"rein",4,"neutral, abwartend",45]
[36,null,null,2,"Wald",5,"gutes Jagdgebiet / seltene Tiere",11,"nichts",null,null,6,"befleckter Astralraum",2,"intrigant",25]
[37,null,null,2,"Wald",2,"Laubwald / Bauholz",8,"altes Elementarheiligtum","Heiligtum der Erde",null,3,"Luftpiraten vorhanden",3,"wirtschaftlicher Gegenspieler",35]
[38,"Pratia","Lady Shania von Sraphina",2,"Wald",6,"magische Pflanzen / elementares Holz",12,0,"Freigeist",null,5,"Kultisten",1,"feindselig",15]
[39,null,null,2,"Wald",4,"Edelhölzer / hochw. Bauholz",9,"altes Schlachtfeld",null,null,8,"Dämonenverseucht",3,"wirtschaftlicher Gegenspieler",35]
[40,null,null,2,"Wald",2,"Laubwald / Bauholz",12,0,null,null,7,"verfluchtes Land",3,"wirtschaftlicher Gegenspieler",35]

{"sheet":"Parameter II","index":3,"n_rows":98,"n_cols":8,"rows_kept":98,"cut":false,"hidden":true,"merged":[]}
[]
["Basiswert","Startbestand","Volk",150]
["Basiswert","Wachstum","Volk",0.02]
["Basisdivisor","Arbeitskräfte",null,30]
[]
[]
["Landschaftsfaktor"]
["Schlüssel","Landschaft","Einfluss auf Startbestand Bevölkerung"]
[1,"Gebirge",0.9]
[2,"Wald",0.7]
[3,"Weideland",1]
[4,"Flussgebiet",1.1000000000000001]
[]
[]
[null,null,null,1500]
["Schlüssel","Verseuchungsgrad","einmalige Kosten für Beseitigung in LP","Einfluss auf Bevölkerungswachstum","Faktor für Bevölkerungsstartwert","Einfluss auf Stimmung"]
[1,"rein",0,0.02,0.1,0]
[2,"Orkbrenner vorhanden",1500,-0.01,0,-2]
[3,"Luftpiraten vorhanden",3000,-0.01,0,-1]
[4,"geheimer Theranerposten",4500,-0.03,0,-3]
[5,"Kultisten",6000,-0.01,-0.2,-1]
[6,"befleckter Astralraum",7500,-0.01,-0.1,-1]
[7,"verfluchtes Land",9000,-0.02,-0.3,-2]
[8,"Dämonenverseucht",10500,-0.04,-0.5,-3]
[]
[]
["Stufe","Einstellung Volk","Punkte","Einfluss auf Bevölkerungswachstum",null,"Index","Stufe","Einstellung"]
[1,"feindselig",0,-0.03,null,0,0,"offener Aufstand"]
[2,"intrigant",1,-0.02,null,1,0,"offener Aufstand"]
[3,"wirtschaftlicher Gegenspieler",2,0,null,2,0,"offener Aufstand"]
[4,"neutral, abwartend",3,0,null,3,0,"offener Aufstand"]
[5,"freundlich, fleißig",4,0.01,null,4,0,"offener Aufstand"]
[6,"loyal bis in den Tod",5,0.02,null,5,0,"offener Aufstand"]
[0,"offener Aufstand",-1,-0.05,null,6,0,"offener Aufstand"]
[null,null,null,null,null,7,0,"offener Aufstand"]
[null,null,null,null,null,8,0,"offener Aufstand"]
["Schlüssel","Landschaftsmarke","Faktor","Einfluss auf Bevölkerungswachstum",null,9,0,"offener Aufstand"]
[1,"altes Kaer (geöffnet)",2,0.01,null,10,1,"feindselig"]
[2,"alter Tempel einer Passion (normal)",2,0.02,null,11,1,"feindselig"]
[3,"Hügelgräber",2,0.01,null,12,1,"feindselig"]
[4,"antike Ruinen",2.5,0.01,null,13,1,"feindselig"]
[5,"altes Kaer (ungeöffnet)",3,0.03,null,14,1,"feindselig"]
[6,"Magierturm",1.5,0.02,null,15,1,"feindselig"]
[7,"Luftschiffwrack",1.5,0.01,null,16,1,"feindselig"]
[8,"altes Elementarheiligtum",1.5,0.01,null,17,1,"feindselig"]
[9,"altes Schlachtfeld",2,0.01,null,18,1,"feindselig"]
[10,"alter Friedhof",1.5,0.01,null,19,1,"feindselig"]
[11,"nichts",1,0,null,20,2,"intrigant"]
[12,null,1,0,null,21,2,"intrigant"]
[null,null,null,null,null,22,2,"intrigant"]
[null,null,null,null,null,23,2,"intrigant"]
["Schlüssel",null,"Einfluss auf Bevölkerungswachstum","Einfluss auf Stimmung",null,24,2,"intrigant"]
[-5,"bedingungsloses Grundeinkommen",0.1,10,null,25,2,"intrigant"]
[-4,"große Spende",0.05,6,null,26,2,"intrigant"]
[-3,"große Spende",0.05,6,null,27,2,"intrigant"]
[-2,"kleine Spende",0.03,4,null,28,2,"intrigant"]
[-1,"kleine Spende",0.03,4,null,29,2,"intrigant"]
[0,"keine Steuern",0.01,2,null,30,3,"wirtschaftlicher Gegenspieler"]
[1,"normale Steuern",0,0,null,31,3,"wirtschaftlicher Gegenspieler"]
[2,"normale Steuern",0,0,null,32,3,"wirtschaftlicher Gegenspieler"]
[3,"erhöhte Steuern",-0.01,-2,null,33,3,"wirtschaftlicher Gegenspieler"]
[4,"erhöhte Steuern",-0.01,-2,null,34,3,"wirtschaftlicher Gegenspieler"]
[5,"hohe Steuern",-0.03,-4,null,35,3,"wirtschaftlicher Gegenspieler"]
[6,"hohe Steuern",-0.03,-4,null,36,3,"wirtschaftlicher Gegenspieler"]
[7,"hohe Steuern",-0.03,-4,null,37,3,"wirtschaftlicher Gegenspieler"]
[8,"Ausbeutertum",-0.05,-8,null,38,3,"wirtschaftlicher Gegenspieler"]
[9,"Ausbeutertum",-0.05,-8,null,39,3,"wirtschaftlicher Gegenspieler"]
[10,"Ausbeutertum",-0.05,-8,null,40,4,"neutral, abwartend"]
[11,"Ausbeutertum",-0.05,-8,null,41,4,"neutral, abwartend"]
[12,"Ausbeutertum",-0.05,-8,null,42,4,"neutral, abwartend"]
[13,"Blutsaugerei *!§&?!*ä(#",-0.1,-16,null,43,4,"neutral, abwartend"]
[14,"Blutsaugerei *!§&?!*ä(#",-0.1,-16,null,44,4,"neutral, abwartend"]
[15,"Blutsaugerei *!§&?!*ä(#",-0.1,-16,null,45,4,"neutral, abwartend"]
[16,"Blutsaugerei *!§&?!*ä(#",-0.1,-16,null,46,4,"neutral, abwartend"]
[17,"schlicht Dämonpaktiererei",-0.5,-70,null,47,4,"neutral, abwartend"]
[18,"schlicht Dämonpaktiererei",-0.5,-70,null,48,4,"neutral, abwartend"]
[19,"schlicht Dämonpaktiererei",-0.5,-70,null,49,4,"neutral, abwartend"]
[20,"schlicht Dämonpaktiererei",-0.5,-70,null,50,5,"freundlich, fleißig"]
[21,"schlicht Dämonpaktiererei",-0.5,-70,null,51,5,"freundlich, fleißig"]
[22,"schlicht Dämonpaktiererei",-0.5,-70,null,52,5,"freundlich, fleißig"]
[23,"schlicht Dämonpaktiererei",-0.5,-70,null,53,5,"freundlich, fleißig"]
[24,"schlicht Dämonpaktiererei",-0.5,-70,null,54,5,"freundlich, fleißig"]
[25,"schlicht Dämonpaktiererei",-0.5,-70,null,55,5,"freundlich, fleißig"]
[26,"schlicht Dämonpaktiererei",-0.5,-70,null,56,5,"freundlich, fleißig"]
[null,null,null,null,null,57,5,"freundlich, fleißig"]
["Schlüssel","Bandbreite","Steuersatz",null,null,58,5,"freundlich, fleißig"]
[null,200,0.05,null,null,59,5,"freundlich, fleißig"]
[null,400,0.1,null,null,60,6,"loyal bis in den Tod"]
[null,600,0.3,null,null,61,6,"loyal bis in den Tod"]
[null,800,0.4,null,null,62,6,"loyal bis in den Tod"]
[null,null,0.5,null,null,63,6,"loyal bis in den Tod"]
[null,null,null,null,null,64,6,"loyal bis in den Tod"]
[null,null,null,null,null,65,6,"loyal bis in den Tod"]
[null,null,null,null,null,66,6,"loyal bis in den Tod"]
[null,null,null,null,null,67,6,"loyal bis in den Tod"]
[null,null,null,null,null,68,6,"loyal bis in den Tod"]
[null,null,null,null,null,69,6,"loyal bis in den Tod"]
[null,null,null,null,null,70,6,"loyal bis in den Tod"]

{"sheet":"Produktion","index":4,"n_rows":27,"n_cols":6,"rows_kept":27,"cut":false,"hidden":true,"merged":[]}
[]
["Schlüssel","Wirtschaftsbereich","produziert","Gruppe","Anzahl pro Runde pro MA","Basis einsetzbare MA"]
["11","Steinbruch","Steine","Rohstoff",6,5]
["12","Eisenminen","Eisen","Rohstoff",5,5]
["13","Silberminen","Silber","Rohstoff",4,5]
["14","Goldminen","Gold","Rohstoff",3,5]
["15","Edelsteinminen","Edelsteine","Rohstoff",2,5]
["16","Elementarquelle Erde","reines Element","Rohstoff",1,1]
["21","Köhlerei","Kohle","Rohstoff",6,5]
["22","Forstwirtschaft","Holz","Rohstoff",5,5]
["23","Kräutersammler","Kräuter","Rohstoff",3,2]
["24","Edelholzhain","Edelholz","Rohstoff",3,4]
["25","Jagdgebiet","Leder","Rohstoff",3,3]
["26","Elementarquelle Holz","reines Element","Rohstoff",1,1]
["31","Lehmgrube","Ziegel","Rohstoff",6,5]
["32","Schafszucht","Wolle","Rohstoff",5,5]
["33","Gehöft","Korn","Nahrung",6,5]
["34","hochwertige Nahrungsproduktion","Hopfen","Rohstoff",4,3]
["35","edle Wildtiere","Felle","Rohstoff",2,2]
["36","Weinanbaugebiet","Wein","Nahrung",5,1]
[37,"Rinderfarm","Fleisch","Nahrung"]
["41","Fischerei","Fisch","Nahrung",6,5]
["42","Floßwirtschaft","Holz","Rohstoff",4,3]
["43","Anlegestelle","Werkzeuge","Rohstoff",3,1]
["44","Zollstelle","Geld","Rohstoff",50,2]
["45","Handelsposten","Werkzeuge","Rohstoff",5,1]
["46","Elementarquelle Wasser ","reines Element","Rohstoff",1,1]

{"sheet":"Handelwaren","index":5,"n_rows":16,"n_cols":11,"rows_kept":16,"cut":false,"hidden":true,"merged":[[0,6,0,10],[1,6,1,7],[1,8,1,9]]}
[null,null,null,null,null,null,"Unterhalt"]
["Nr.","Wirtschaftsbereich","produziert","Gruppe","Anzahl pro Runde pro MA","Basis einsetzbare MA","Rohstoff I",null,"Rohstoff II",null,"Geld"]
[1,"Alchemistenlabor","Tinkturen","Handelswaren",1,1,2,"Kräuter",1,"Kohle",25]
[2,"Bäckerei","Brot","Nahrung",5,1,2,"Korn",1,"Holz",5]
[3,"Bogner","Bögen","Handelswaren",1,1,1,"Holz",1,"Eisen",5]
[4,"Brauerei","Bier","Nahrung",3,1,1,"Hopfen",1,"Korn",10]
[5,"Flussschiffwerf","Flussschiff","Handelswaren",1,1,2,"Holz",1,"Werkzeug",20]
[6,"Gerber","Lederrüstung","Handelswaren",1,1,2,"Leder",1,"Werkzeug",15]
[7,"Goldschmied","Schmuck","Handelswaren",1,1,2,"Gold",1,"Edelsteine",15]
[8,"Mühle","Mehl","Handelswaren",10,1,2,"Korn",1,"Werkzeug",10]
[9,"Plättner","Eisenrüstung","Handelswaren",1,1,2,"Eisen",1,"Werkzeug",20]
[10,"Schmiede","Werkzeug","Handelswaren",2,1,1,"Eisen",1,"Kohle",10]
[11,"Stallungen","Reittiere","Handelswaren",1,1,2,"Korn",1,"Holz",5]
[12,"Waffenschmiede","Klingenwaffen","Handelswaren",1,1,2,"Eisen",1,"Kohle",15]
[13,"Weberei","Kleidung","Handelswaren",3,1,2,"Wolle",1,"Leder",10]
[14,"Papiermacher","Papier","Handelswaren",2,1,3,"Holz",1,"Leder",5]

{"sheet":"Erweiterungen","index":6,"n_rows":39,"n_cols":13,"rows_kept":39,"cut":false,"hidden":true,"merged":[[1,10,1,11],[1,8,1,9],[0,8,0,12]]}
[null,null,null,null,null,null,null,null,"Unterhalt"]
["Nr.","Gruppe","Erweiterung","Bonus auf","Bonus I","Bonus II auf","Bonus II",null,"Rohstoff I",null,"Rohstoff II",null,"Geld"]
[1,"Verbesserung","3-Felder-Wirtschaft","Korn",2,null,null,"dauerhaft",null,null,null,null,10]
[2,"Stimmung","Badehaus","Stimmung",2,null,null,"dauerhaft","Holz",3,"Kleidung",1,20]
[3,"Verbesserung","Bankhaus","Geld",50,null,null,"dauerhaft","Gold",2,"Papier",5,50]
[4,"Stimmung","Bibliothek","Stimmung",3,null,null,"dauerhaft","Papier",5,"Leder",1,100]
[5,"Verbesserung","Brennofen","Ziegel",2,null,null,"dauerhaft","Holz",1,null,null,10]
[6,"Verbesserung","Eisenhütte","Eisen",2,null,null,"dauerhaft","Kohle",1,null,null,10]
[7,"Verbesserung","Elementarist","reines Element",2,null,null,"dauerhaft","reines Element",1,"Silber",1,10]
[8,"Wehr","Festung","ermöglicht Soldaten",100,"Wehrkraft",5,"dauerhaft","Stein",10,"Holz",null,100]
[9,"Verbesserung","Förster","Edelhölzer",2,null,null,"dauerhaft","Bier",1,null,null,10]
[10,"Stimmung","Galgen","Stimmung",1,null,null,"dauerhaft",null,null,null,null,2]
[11,"Verbesserung","Gewächshaus","Käuter",2,null,null,"dauerhaft","reines Element",1,null,null,10]
[12,"Verbesserung","Goldschmelze","Gold",2,null,null,"dauerhaft","Kohle",1,null,null,10]
[13,"Verbesserung","großer Meiler","Kohle",2,null,null,"dauerhaft","Holz",1,null,null,10]
[14,"Stimmung","großes Fest","Stimmung",3,null,null,"einmalig"]
[15,"Verbesserung","Handelskontor","Geld",30,null,null,"dauerhaft","Papier",3,null,null,30]
[16,"Stimmung","Heiler","Stimmung",1,"Volk",0.02,"dauerhaft","Kräuter",2,"Kleidung",2,10]
[17,"Verbesserung","Holzgerüst","Steine",2,null,null,"dauerhaft","Holz",1,null,null,10]
[18,"Verbesserung","Jagdhütte","Leder",2,null,null,"dauerhaft","Holz",1,null,null,10]
[19,"Wehr","Kaserne","ermöglicht Soldaten",30,"Wehrkraft",3,"dauerhaft","Ziegel",5,"Kleidung",3,50]
[20,"Stimmung","Kelterei","Stimmung",1,null,null,"dauerhaft","Wein",4,"Holz",2,20]
[21,"Ausbau","Lagererweiterung","zusätzlicher Lagerplatz",null,null,null,"einmalig"]
[22,"Wehr","Magierturm","Verseuchung",-1,"Wehrkraft",3,"dauerhaft","Kräuter",4,"reines Element",2,70]
[23,"Ausbau","Mauer (Stein)","Dorfbauplatz",2,null,null,"dauerhaft","Stein",2,null,null,10]
[24,"Verbesserung","Münze","Geld",100,null,null,"dauerhaft","Gold",5,"Silber",5,100]
[25,"Ausbau","Palisade","Dorfbauplatz",1,"Wehrkraft",1,"dauerhaft","Holz",1,null,null,5]
[26,"Ausbau","Pilgerhaus","Volk",0.01,null,null,"dauerhaft","Brot",1,"Kleidung",1,30]
[27,"Ausbau","Prospektor","schaltet Rohstoffquelle frei",null,null,null,"einmalig"]
[28,"Verbesserung","Sägewerk","Holz",2,null,null,"dauerhaft","Eisen",1,null,null,10]
[29,"Verbesserung","Schäfer","Wolle",2,null,null,"dauerhaft","Korn",1,null,null,10]
[30,"Verbesserung","Silberschmelze","Silber",2,null,null,"dauerhaft","Kohle",1,null,null,10]
[31,"Wehr","Straße","Geld",1,"Wehrkraft",1,"dauerhaft","Stein",1,"Werkzeug",1,5]
[32,"Stimmung","Taverne","Stimmung",2,"Volk",0.01,"dauerhaft","Bier",5,"Fleisch",3,20]
[33,"Stimmung","Theater","Stimmung",5,null,null,"dauerhaft","Mixtur",2,"Kleidung",3,50]
[34,"Stimmung","Troubadur","Stimmung",1,"Volk",0.02,"dauerhaft","Bier",3,"Wein",2,30]
[35,"Wehr","Wachturm","ermöglicht Soldaten",10,"Wehrkraft",2,"dauerhaft","Ziegel",3,"Holz",1,30]
[36,"Verbesserung","Waschanlage","Edelsteine",2,null,null,"dauerhaft","Wolle",1,null,null,10]
[37,"Verbesserung","Werkstatt","Werkzeug",2,null,null,"dauerhaft","Bier",1,null,null,10]

{"sheet":"Preisliste Throal","index":7,"n_rows":36,"n_cols":4,"rows_kept":36,"cut":false,"hidden":true,"merged":[[0,0,1,0],[0,1,1,1]]}
["Gruppe","Rohstoff","Einkaufspreis je Einheit","Verkaufspreis je Einheit"]
[null,null,"in Silber","in Silber"]
["Rohstoffe","Steine",1,{"$f":"C3*5","v":5}]
["Rohstoffe","Eisen",3,{"$f":"C4*5","v":15}]
["Rohstoffe","Silber",5,25]
["Rohstoffe","Gold",7,35]
["Rohstoffe","Edelsteine",10,50]
["Rohstoffe","reines Element",100,500]
["Rohstoffe","Kohle",1,5]
["Rohstoffe","Holz",1,5]
["Rohstoffe","Kräuter",5,25]
["Rohstoffe","Edelholz",10,50]
["Rohstoffe","Leder",3,15]
["Rohstoffe","Ziegel",2,10]
["Rohstoffe","Wolle",2,10]
["Rohstoffe","Korn",2,10]
["Rohstoffe","Hopfen",3,15]
["Rohstoffe","Felle",10,50]
["Rohstoffe","Wein",5,25]
["Rohstoffe","Fleisch",5,25]
["Rohstoffe","Fisch",1,5]
["Rohstoffe","Werkzeuge",5,25]
["Handelswaren","Tinkturen",200,1000]
["Handelswaren","Brot",4,20]
["Handelswaren","Bögen",40,200]
["Handelswaren","Bier",5,25]
["Handelswaren","Flussschiff",200,1000]
["Handelswaren","Lederrüstung",10,50]
["Handelswaren","Schmuck",100,500]
["Handelswaren","Mehl",3,15]
["Handelswaren","Eisenrüstung",40,200]
["Handelswaren","Werkzeug",5,25]
["Handelswaren","Reittiere",150,750]
["Handelswaren","Klingenwaffen",15,75]
["Handelswaren","Kleidung",2,10]
["Handelswaren","Papier",2,10]

{"sheet":"Lager","index":8,"n_rows":38,"n_cols":2,"rows_kept":38,"cut":false,"hidden":true,"merged":[]}
["Lagerliste"]
["Produkt","Art"]
["Steine","Rohstoff"]
["Eisen","Rohstoff"]
["Silber","Rohstoff"]
["Gold","Rohstoff"]
["Edelsteine","Rohstoff"]
["elementare Erde","Rohstoff"]
["Kohle","Rohstoff"]
["Holz","Rohstoff"]
["Kräuter","Rohstoff"]
["Edelholz","Rohstoff"]
["Leder","Rohstoff"]
["elementares Holz","Rohstoff"]
["Ziegel","Rohstoff"]
["Wolle","Rohstoff"]
["Korn","Nahrung"]
["Hopfen","Rohstoff"]
["Felle","Rohstoff"]
["Wein","Nahrung"]
["Fleisch","Nahrung"]
["Fisch","Nahrung"]
["Werkzeuge","Rohstoff"]
["Geld","Rohstoff"]
["elementares Wasser","Rohstoff"]
["Tinkturen","Handelswaren"]
["Brot","Nahrung"]
["Bögen","Handelswaren"]
["Bier","Nahrung"]
["Flussschiff","Handelswaren"]
["Lederrüstung","Handelswaren"]
["Schmuck","Handelswaren"]
["Mehl","Handelswaren"]
["Eisenrüstung","Handelswaren"]
["Werkzeug","Handelswaren"]
["Reittiere","Handelswaren"]
["Klingenwaffen","Handelswaren"]
["Kleidung","Handelswaren"]